{"text_format":"1","workbook":"xlsx","n_sheets":7,"sheets":["Калькулятор","Воздушные линии","Кабельные линии","Трансформаторные подстанции","Расчет1","Расчет2","OrgUtv"],"not_rendered":{"charts":0,"images":9,"macros":1,"external_links":0,"defined_names":15,"comments":0,"pivot_tables":0},"unopened":[],"bounds":{"document_bytes":16777216,"sheet_cells":100000,"rows_first":2000,"rows_last":500,"rows_between":2000,"halvings":0,"cell_chars":16384,"cell_head_chars":4096},"cells_cut":0,"cells_raw":0,"read":"whole","date_system":"1900"}

{"sheet":"Калькулятор","index":0,"n_rows":21,"n_cols":3,"rows_kept":21,"cut":false,"hidden":false,"merged":[[1,1,1,2],[20,1,20,2]]}
[]
[null,"Расчет платы за технологическое присоединение к электрическим сетям"]
[]
[null,"Наименование сетевой организации:"]
[]
[null,"Уровень напряжения энергопринимающих устройств, кВ:"]
[]
[null,"Категория надежности:","третья"]
[]
[null,"Максимальная мощность, кВт:"]
[]
[]
[null,"Есть ли необходимость нового строительства?"]
[null,"Есть ли необходимость строительства воздушных линий?"]
[null,"Есть ли необходимость строительства кабельных линий?"]
[null,"Есть ли необходимость строительства транформаторных подстанций?"]
[]
[]
[]
[]
[null,"Внимание! Данные расчеты носят справочный характер и не могут являться окончательными для оплаты стоимости технологического присоединения. \nКалькулятор расчета платы за технологическое присоединение к электрическим сетям предназначен для примерного расчета стоимости размера платы за технологическое присоединение к электрическим сетям территориальных сетевых организаций Свердловской области."]

{"sheet":"Воздушные линии","index":1,"n_rows":44,"n_cols":4,"rows_kept":44,"cut":false,"hidden":true,"merged":[[42,0,42,2],[43,0,43,2],[26,1,26,3],[40,0,40,2],[41,0,41,2],[36,1,36,3],[38,1,38,3],[21,1,21,3],[0,0,0,3],[3,1,3,3],[11,1,11,3],[20,1,20,3],[4,1,4,3]]}
["Стандартизированная тарифная ставка на покрытие расходов сетевых организаций на территории Свердловской области на строительство воздушных линий электропередач в расчете на 1 км линий С2, руб./км (без НДС, без налога на прибыль)"]
[]
["№ п/п","Наименование стандартизированной тарифной ставки","Размер стандартизированной тарифной ставки","Длина линии, км"]
["1.1.","ВЛ-0,4 кВ "]
["1.1.1.","ВЛ-0,4 кВ проводом СИП на деревянных опорах с железобетонными (ж/б) приставками"]
["1.1.1.1.","ВЛ-0,4 кВ проводом СИП с площадью поперечного сечения до 50 мм2 на деревянных опорах с ж/б приставками (1 цепное исполнение)",189602]
["1.1.1.2.","ВЛ-0,4 кВ проводом СИП с площадью поперечного сечения 70 мм2 на деревянных опорах с ж/б приставками (1 цепное исполнение)",199774]
["1.1.1.3.","ВЛ-0,4 кВ проводом СИП с площадью поперечного сечения 95 мм2 на деревянных опорах с ж/б приставками (1 цепное исполнение)",208242]
["1.1.1.4.","ВЛ-0,4 кВ проводом СИП с площадью поперечного сечения до 50 мм2 на деревянных опорах с ж/б приставками (2 цепное исполнение)",247436]
["1.1.1.5.","ВЛ-0,4 кВ проводом СИП с площадью поперечного сечения 70 мм2 на деревянных опорах с ж/б приставками (2 цепное исполнение)",267856]
["1.1.1.6.","ВЛ-0,4 кВ проводом СИП с площадью поперечного сечения 95 мм2 на деревянных опорах с ж/б приставками (2 цепное исполнение)",286608]
["1.1.2.","ВЛ-0,4 кВ проводом СИП на железобетонных опорах"]
["1.1.2.1.","ВЛ-0,4 кВ проводом СИП  с площадью поперечного сечения до 50 мм2 на  ж/б опорах (1 цепное исполнение)",235120]
["1.1.2.2.","ВЛ-0,4 кВ проводом СИП  с площадью поперечного сечения 70 мм2 на ж/б опорах (1 цепное исполнение)",245380]
["1.1.2.3.","ВЛ-0,4 кВ проводом СИП  с площадью поперечного сечения 95 мм2 на ж/б опорах (1 цепное исполнение)",254613]
["1.1.2.4.","ВЛ-0,4 кВ проводом СИП с площадью поперечного сечения 120 мм2 на ж/б опорах (1 цепное исполнение)",266306]
["1.1.2.5.","ВЛ-0,4 кВ проводом СИП с площадью поперечного сечения до 50 мм2 на ж/б опорах (2 цепное исполнение)",295623]
["1.1.2.6.","ВЛ-0,4 кВ проводом СИП с площадью поперечного сечения 70 мм2 на ж/б опорах (2 цепное исполнение)",313458]
["1.1.2.7.","ВЛ-0,4 кВ проводом СИП с площадью поперечного сечения 95 мм2 на ж/б опорах (2 цепное исполнение)",331197]
["1.1.2.8.","ВЛ-0,4 кВ проводом СИП с площадью поперечного сечения 120 мм2 на ж/б опорах (2 цепное исполнение)",354653]
["1.2.","ВЛ-10(6) кВ"]
["1.2.1.","ВЛ-10(6) кВ проводом СИП на деревянных опорах с железобетонными приставками\n"]
["1.2.1.1.","ВЛ-10(6) кВ проводом СИП с площадью поперечного сечения до 50 мм2 на деревянных опорах с ж/б приставками (1 цепное исполнение)\n",215611]
["1.2.1.2.","ВЛ-10(6) кВ проводом СИП с площадью поперечного сечения 70 мм2 на деревянных опорах с ж/б приставками (1 цепное исполнение)\n",237323]
["1.2.1.3.","ВЛ-10(6) кВ проводом СИП с площадью поперечного сечения до 95 мм2 на деревянных опорах с ж/б приставками (1 цепное исполнение)\n",252605]
["1.2.1.4.","ВЛ-10(6) кВ проводом СИП с площадью поперечного сечения до 150 мм2 на деревянных опорах с ж/б приставками (1 цепное исполнение)\n",274104]
["1.2.2.","ВЛ-10(6) кВ проводом СИП на железобетонных опорах "]
["1.2.2.1.","ВЛ-10(6) кВ проводом СИП  с площадью поперечного сечения до 1х50 мм2 на ж/б опорах (1 цепное исполнение)",290544]
["1.2.2.2.","ВЛ-10(6) кВ проводом СИП  с площадью поперечного сечения 1х70 мм2 на ж/б опорах (1 цепное исполнение)",300105]
["1.2.2.3.","ВЛ-10(6) кВ проводом СИП  с площадью поперечного сечения 1х95 мм2 на ж/б опорах (1 цепное исполнение)",311299]
["1.2.2.4.","ВЛ-10(6) кВ проводом СИП  с площадью поперечного сечения 1х120 мм2 на ж/б опорах (1 цепное исполнение)",357971]
["1.2.2.5.","ВЛ-10(6) кВ проводом СИП  с площадью поперечного сечения  1х150 мм2 на ж/б опорах (1 цепное исполнение)",409208]
["1.2.2.6.","ВЛ-10(6) кВ проводом СИП  с площадью поперечного сечения  до 1х50 мм2 на ж/б опорах (2 цепное исполнение)",421434]
["1.2.2.7.","ВЛ-10(6) кВ проводом СИП  с площадью поперечного сечения  1х70 мм2 на ж/б опорах (2 цепное исполнение)",437470]
["1.2.2.8.","ВЛ-6-10 кВ проводом СИП сечением до 1х95 на ж/б опорах (2 цепные)",458666]
["1.3.","ВЛ-20 кВ ","ставка не утверждена"]
["1.4.","ВЛ-35 кВ проводом АС"]
["1.4.1.","ВЛ-35 кВ проводом АС с площадью поперечного сечения 120 мм2 (1 цепное исполнение)",1037500]
["1.5.","ВЛ-110 кВ проводом АС"]
["1.5.1.","ВЛ-110 кВ проводом АС с площадью поперечного сечения 120 мм2 (1 цепное исполнение)",1395700]
["Примечания:"]
["ВЛ - воздушная линия."]
["Коэффициент перевода для воздушной прокладки провода с медными жилами = 3,83"]
["Коэффициент перевода для воздушной прокладки провода с алюминиевыми жилами = 4,3"]

{"sheet":"Кабельные линии","index":2,"n_rows":173,"n_cols":4,"rows_kept":173,"cut":false,"hidden":true,"merged":[[33,1,33,3],[39,1,39,3],[141,1,141,3],[134,1,134,3],[0,0,0,3],[3,1,3,3],[4,1,4,3],[126,1,126,3],[16,1,16,3],[24,1,24,3],[52,1,52,3],[60,1,60,3],[75,1,75,3],[64,1,64,3],[63,1,63,3],[49,1,49,3],[172,0,172,2],[171,0,171,2],[169,0,169,2],[142,1,142,3],[149,1,149,3],[163,1,163,3],[164,1,164,3],[166,1,166,3],[170,0,170,2],[167,1,167,3],[156,1,156,3],[100,1,100,3],[108,1,108,3],[113,1,113,3],[118,1,118,3],[84,1,84,3],[87,1,87,3],[90,1,90,3]]}
["Стандартизированная тарифная ставка на покрытие расходов сетевых организаций на территории Свердловской области на строительство кабельных линий электропередач в расчете на 1 км линий С3,  руб./км (без НДС, без налога на прибыль)"]
[]
["№ п/п","Наименование стандартизированной тарифной ставки","Размер стандартизированной тарифной ставки","Длина линии, км"]
["2.1.","КЛ-0,4 кВ"]
["2.1.1.","Кабель бронированный с изоляцией из ПВХ пластиката и алюминиевой токопроводящей жилой (прокладка в траншее)"]
["2.1.1.1.","КЛ-0,4 кВ кабелем марки АВБбШв сечением 4х50 мм2 (1 цепное исполнение)\n",233572]
["2.1.1.2.","КЛ-0,4 кВ кабелем марки АВБбШв сечением 4х70 мм2 (1 цепное исполнение)\n",248454]
["2.1.1.3.","КЛ-0,4 кВ кабелем марки АВБбШв сечением 4х95 мм2 (1 цепное исполнение)\n",259270]
["2.1.1.4.","КЛ-0,4 кВ кабелем марки АВБбШв сечением до 4х120 мм2 (1 цепное исполнение)\n",289345]
["2.1.1.5.","КЛ-0,4 кВ кабелем марки АВБбШв сечением до 4х150 мм2 (1 цепное исполнение)\n",311328]
["2.1.1.6.","КЛ-0,4 кВ кабелем марки АВБбШв сечением до 4х185 мм2 (1 цепное исполнение)\n",368322]
["2.1.1.7.","КЛ-0,4 кВ кабелем марки АВБбШв сечением 4х240 мм2 (1 цепное исполнение)\n",368735]
["2.1.1.8.","КЛ-0,4 кВ кабелем марки АВБбШв сечением 4х50 мм2 (2 цепное исполнение)\n",359701]
["2.1.1.9.","КЛ-0,4 кВ кабелем марки АВБбШв сечением 4х95 мм2 (2 цепное исполнение)\n",422610]
["2.1.1.10.","КЛ-0,4 кВ кабелем марки АВБбШв сечением 4х120 мм2 (2 цепное исполнение)\n",474526]
["2.1.1.11.","КЛ-0,4 кВ кабелем марки АВБбШв сечением 4х240 мм2 (2 цепное исполнение)\n",630537]
["2.1.2.","Кабель бронированный с изоляцией из ПВХ пластиката и алюминиевой токопроводящей жилой (прокладка методом горизонтально-направленного бурения)"]
["2.1.2.1.","КЛ-0,4 кВ кабелем марки АВБбШв сечением 4х50 мм2 (1 цепное исполнение)\n",1898321]
["2.1.2.2","КЛ-0,4 кВ кабелем марки АВБбШв сечением 4х70 мм2 (1 цепное исполнение)\n",1912809]
["2.1.2.3.","КЛ-0,4 кВ кабелем марки АВБбШв сечением 4х95 мм2 (1 цепное исполнение)\n",1927286]
["2.1.2.4.","КЛ-0,4 кВ кабелем марки АВБбШв сечением до 4х120 мм2 (1 цепное исполнение)\n",1957361]
["2.1.2.5.","КЛ-0,4 кВ кабелем марки АВБбШв сечением до 4х150 мм2 (1 цепное исполнение)\n",1976943]
["2.1.2.6.","КЛ-0,4 кВ кабелем марки АВБбШв сечением до 4х185 мм2 (1 цепное исполнение)\n",2033534]
["2.1.2.7.","КЛ-0,4 кВ кабелем марки АВБбШв сечением 4х240 мм2 (1 цепное исполнение)\n",2033959]
["2.1.3.","Кабель бронированный с изоляцией из сшитого полиэтилена и алюминиевой токопроводящей жилой (прокладка в траншее)"]
["2.1.3.1.","КЛ-0,4 кВ кабелем марки АПвБбШв сечением 4х95 мм2 (1 цепное исполнение)\n",255635]
["2.1.3.2.","КЛ-0,4 кВ кабелем марки АПвБбШв сечением 4х120 мм2 (1 цепное исполнение)\n",278382]
["2.1.3.3.","КЛ-0,4 кВ кабелем марки АПвБбШв сечением 4х150 мм2 (1 цепное исполнение)\n",309335]
["2.1.3.4.","КЛ-0,4 кВ кабелем марки АПвБбШв сечением 4х185 мм2 (1 цепное исполнение)\n",336539]
["2.1.3.5.","КЛ-0,4 кВ кабелем марки АПвБбШв сечением 4х240 мм2 (1 цепное исполнение)\n",396634]
["2.1.3.6.","КЛ-0,4 кВ кабелем марки АПвБбШв сечением 4х95 мм2 (2 цепное исполнение)\n",424354]
["2.1.3.7.","КЛ-0,4 кВ кабелем марки АПвБбШв сечением 4х120 мм2 (2 цепное исполнение)\n",473249]
["2.1.3.8.","КЛ-0,4 кВ кабелем марки АПвБбШв сечением 4х240 мм2 (2 цепное исполнение)\n",709975]
["2.1.4.","Кабель бронированный с изоляцией из сшитого полиэтилена и алюминиевой токопроводящей жилой (прокладка методом горизонтально-направленного бурения)"]
["2.1.4.1.","КЛ-0,4 кВ кабелем марки АПвБбШв сечением 4х95 мм2 (1 цепное исполнение)\n",1923651]
["2.1.4.2.","КЛ-0,4 кВ кабелем марки АПвБбШв сечением 4х120 мм2 (1 цепное исполнение)\n",1946398]
["2.1.4.3.","КЛ-0,4 кВ кабелем марки АПвБбШв сечением 4х150 мм2 (1 цепное исполнение)\n",1974950]
["2.1.4.4.","КЛ-0,4 кВ кабелем марки АПвБбШв сечением 4х185 мм2 (1 цепное исполнение)\n",2002118]
["2.1.4.5.","КЛ-0,4 кВ кабелем марки АПвБбШв сечением 4х240 мм2 (1 цепное исполнение)\n",2062202]
["2.1.5.","Кабель бронированный с изоляцией из ПВХ пластиката и медной токопроводящей жилой (прокладка в траншее)"]
["2.1.5.1.","КЛ-0,4 кВ кабелем марки ВБбШв сечением 4х50 мм2 (1 цепное исполнение)\n",358560]
["2.1.5.2.","КЛ-0,4 кВ кабелем марки ВБбШв сечением 4х95 мм2 (1 цепное исполнение)\n",520678]
["2.1.5.3.","КЛ-0,4 кВ кабелем марки ВБбШв сечением 4х120 мм2 (1 цепное исполнение)\n",607224]
["2.1.5.4.","КЛ-0,4 кВ кабелем марки ВБбШв сечением 4х185 мм2 (1 цепное исполнение)\n",842849]
["2.1.5.5.","КЛ-0,4 кВ кабелем марки ВБбШв сечением 4х240 мм2 (1 цепное исполнение)\n",1070612]
["2.1.5.6.","КЛ-0,4 кВ кабелем марки ВБбШв сечением 4х50 мм2 (2 цепное исполнение)\n",600350]
["2.1.5.7.","КЛ-0,4 кВ кабелем марки ВБбШв сечением 4х95 мм2 (2 цепное исполнение)\n",921312]
["2.1.5.8.","КЛ-0,4 кВ кабелем марки ВБбШв сечением 4х120 мм2 (2 цепное исполнение)\n",1092936]
["2.1.5.9.","КЛ-0,4 кВ кабелем марки ВБбШв сечением 4х240 мм2 (2 цепное исполнение)\n",2032603]
["2.1.6.","Кабель бронированный с изоляцией из ПВХ пластиката и медной токопроводящей жилой (прокладка методом горизонтально-направленного бурения)"]
["2.1.6.1.","КЛ-0,4 кВ кабелем марки ВБбШв сечением 4х185 мм2 (1 цепное исполнение)\n",2510703]
["2.1.6.2.","КЛ-0,4 кВ кабелем марки ВБбШв сечением 4х240 мм2 (1 цепное исполнение)\n",2747215]
["2.1.7.","Кабель бронированный с изоляцией из сшитого полиэтилена и медной токопроводящей жилой (прокладка в траншее)"]
["2.1.7.1.","КЛ-0,4 кВ кабелем ПвБбШв сечением 4х95 мм2 (1 цепное исполнение)\n",517420]
["2.1.7.2.","КЛ-0,4 кВ кабелем ПвБбШв сечением 4х120 мм2 (1 цепное исполнение)\n",615370]
["2.1.7.3.","КЛ-0,4 кВ кабелем ПвБбШв сечением 4х185 мм2 (1 цепное исполнение)\n",865040]
["2.1.7.4.","КЛ-0,4 кВ кабелем ПвБбШв сечением 4х240 мм2 (1 цепное исполнение)\n",1040910]
["2.1.7.5.","КЛ-0,4 кВ кабелем ПвБбШв сечением 4х95 мм2 (2 цепное исполнение)\n",926182]
["2.1.7.6.","КЛ-0,4 кВ кабелем ПвБбШв сечением 4х120 мм2 (2 цепное исполнение)\n",1119973]
["2.1.7.7.","КЛ-0,4 кВ кабелем ПвБбШв сечением 4х240 мм2 (2 цепное исполнение)\n",1988138]
["2.1.8.","Кабель бронированный с изоляцией из сшитого полиэтилена и медной токопроводящей жилой (прокладка методом горизонтально-направленного бурения)"]
["2.1.8.1.","КЛ-0,4 кВ кабелем ПвБбШв сечением 4х185 мм2 (1 цепное исполнение)\n",2594070]
["2.1.8.2.","КЛ-0,4 кВ кабелем ПвБбШв сечением 4х240 мм2 (1 цепное исполнение)\n",2758630]
["2.2.","КЛ-10(6) кВ"]
["2.2.1.","Кабель бронированный с бумажной изоляцией и алюминиевой токопроводящей жилой (прокладка в траншее)"]
["2.2.1.1","КЛ-10(6) кВ кабелем марки ААБл сечением 3х50 мм2 (1 цепное исполнение)\n",266836]
["2.2.1.2","КЛ-10(6) кВ кабелем марки ААБл сечением 3х70 мм2 (1 цепное исполнение)\n",287069]
["2.2.1.3","КЛ-10(6) кВ кабелем марки ААБл сечением 3х95 мм2 (1 цепное исполнение)\n",313203]
["2.2.1.4","КЛ-10(6) кВ кабелем марки ААБл сечением 3х120 мм2 (1 цепное исполнение)\n",332317]
["2.2.1.5","КЛ-10(6) кВ кабелем марки ААБл сечением 3х150 мм2 (1 цепное исполнение)\n",351681]
["2.2.1.6","КЛ-10(6) кВ кабелем марки ААБл сечением 3х185 мм2 (1 цепное исполнение)\n",378684]
["2.2.1.7","КЛ-10(6) кВ кабелем марки ААБл сечением 3х240 мм2 (1 цепное исполнение)\n",420806]
["2.2.1.8","КЛ-10(6) кВ кабелем марки ААБл сечением 3х95 мм2 (2 цепное исполнение)\n",544973]
["2.2.1.9","КЛ-10(6) кВ кабелем марки ААБл сечением 3х120 мм2 (2 цепное исполнение)\n",588201]
["2.2.1.10","КЛ-10(6) кВ кабелем марки ААБл сечением 3х240 мм2 (2 цепное исполнение)\n",726400]
["2.2.2.","Кабель бронированный с бумажной изоляцией и алюминиевой токопроводящей жилой (прокладка методом горизонтально-направленного бурения)"]
["2.2.2.1","КЛ-10(6) кВ кабелем марки ААБл сечением 3х50 мм2 (1 цепное исполнение)\n",1933320]
["2.2.2.2","КЛ-10(6) кВ кабелем марки ААБл сечением 3х70 мм2 (1 цепное исполнение)\n",1953531]
["2.2.2.3","КЛ-10(6) кВ кабелем марки ААБл сечением 3х95 мм2 (1 цепное исполнение)\n",1977463]
["2.2.2.4","КЛ-10(6) кВ кабелем марки ААБл сечением 3х120 мм2 (1 цепное исполнение)\n",1996576]
["2.2.2.5","КЛ-10(6) кВ кабелем марки ААБл сечением 3х150 мм2 (1 цепное исполнение)\n",2015398]
["2.2.2.6","КЛ-10(6) кВ кабелем марки ААБл сечением 3х185 мм2 (1 цепное исполнение)\n",2042377]
["2.2.2.7","КЛ-10(6) кВ кабелем марки ААБл сечением 3х240 мм2 (1 цепное исполнение)\n",2084423]
["2.2.2.8","КЛ-10(6) кВ кабелем марки ААБл сечением 3х240 мм2 (1 цепное исполнение)\n",3070330]
["2.2.3.","Кабель бронированный с бумажной изоляцией и алюминиевой токопроводящей жилой (прокладка в траншее)"]
["2.2.3.1","КЛ-10(6) кВ кабелем марки АСБл2у сечением 3х95 мм2 \n(1 цепное исполнение)\n",353684]
["2.2.3.2","КЛ-10(6) кВ кабелем марки АСБл2у сечением 3х240 мм2 \n(1 цепное исполнение)\n",456083]
["2.2.4.","Кабель бронированный с бумажной изоляцией и алюминиевой токопроводящей жилой (прокладка методом горизонтально-направленного бурения)"]
["2.2.4.1","КЛ-10(6) кВ кабелем марки АСБл2у сечением 3х95 мм2 \n(1 цепное исполнение)\n",1800256]
["2.2.4.2","КЛ-10(6) кВ кабелем марки АСБл2у сечением 3х240 мм2 \n(1 цепное исполнение)\n",1903476]
["2.2.5.","Кабель с изоляцией из сшитого полиэтилена и алюминиевой токопроводящей жилой (прокладка в траншее)"]
["2.2.5.1","КЛ-10(6) кВ кабелем марки АПвПг сечением 3х(1х120) мм2  (1 цепное исполнение)\n",505190]
["2.2.5.2","КЛ-10(6) кВ кабелем марки АПвПг сечением 3х(1х150) мм2 (1 цепное исполнение)\n",525500]
["2.2.5.3","КЛ-10(6) кВ кабелем марки АПвПг сечением 3х(1х185) мм2 (1 цепное исполнение)\n",540430]
["2.2.5.4","КЛ-10(6) кВ кабелем марки АПвПг сечением 3х(1х240) мм2 (1 цепное исполнение)\n",565870]
["2.2.5.5","КЛ-10(6) кВ кабелем марки АПвПг сечением 3х(1х400) мм2 (1 цепное исполнение)\n",647420]
["2.2.5.6","КЛ-10(6) кВ кабелем марки АПвПг сечением 3х(1х630) мм2 (1 цепное исполнение)\n",816550]
["2.2.5.7","КЛ-10(6) кВ кабелем марки АПвПг сечением 3х(1х240) мм2 (2 цепное исполнение)\n",1126081]
["2.2.5.8","КЛ-10(6) кВ кабелем марки АПвПг сечением 3х(1х400) мм2 (2 цепное исполнение)\n",1262469]
["2.2.5.9","КЛ-10(6) кВ кабелем марки АПвПг сечением 3х(1х630) мм2 (2 цепное исполнение) \n",1592273]
["2.2.6.","Кабель с изоляцией из сшитого полиэтилена и алюминиевой токопроводящей жилой (прокладка методом горизонтально-направленного бурения)"]
["2.2.6.1","КЛ-10(6) кВ кабелем марки АПвПг сечением 3х(1х120) мм2 (1 цепное исполнение)\n",2157760]
["2.2.6.2","КЛ-10(6) кВ кабелем марки АПвПг сечением 3х(1х150) мм2 (1 цепное исполнение)\n",2177720]
["2.2.6.3","КЛ-10(6) кВ кабелем марки АПвПг сечением 3х(1х185) мм2 (1 цепное исполнение)\n",2192630]
["2.2.6.4","КЛ-10(6) кВ кабелем марки АПвПг сечением 3х(1х240) мм2 (1 цепное исполнение)\n",2217550]
["2.2.6.5","КЛ-10(6) кВ кабелем марки АПвПг сечением 3х(1х400) мм2 (1 цепное исполнение)\n",2973550]
["2.2.6.6","КЛ-10(6) кВ кабелем марки АПвПг сечением 3х(1х500) мм2 \n(1 цепное исполнение)\n",3054287]
["2.2.6.7","КЛ-10(6) кВ кабелем марки АПвПг сечением 3х(1х630) мм2 (1 цепное исполнение)\n",3127790]
["2.2.7.","Кабель с изоляцией из сшитого полиэтилена и алюминиевой токопроводящей жилой (прокладка в траншее)"]
["2.2.7.1","КЛ-10(6) кВ кабелем марки АПвПг сечением 3х120 мм2 \n(1 цепное исполнение)\n",384080]
["2.2.7.2","КЛ-10(6) кВ кабелем марки АПвПг сечением 3х150 мм2 \n(1 цепное исполнение)\n",404090]
["2.2.7.3","КЛ-10(6) кВ кабелем марки АПвПг сечением 3х185 мм2 \n(1 цепное исполнение)\n",427060]
["2.2.7.4","КЛ-10(6) кВ кабелем марки АПвПг сечением 3х240 мм2 \n(1 цепное исполнение)\n",465060]
["2.2.8.","Кабель с изоляцией из сшитого полиэтилена и алюминиевой токопроводящей жилой (прокладка методом горизонтально-направленного бурения)"]
["2.2.8.1","КЛ-10(6) кВ кабелем марки АПвПг сечением 3х120 мм2 \n(1 цепное исполнение)\n",1958400]
["2.2.8.2","КЛ-10(6) кВ кабелем марки АПвПг сечением 3х150 мм2 \n(1 цепное исполнение)\n",1977560]
["2.2.8.3","КЛ-10(6) кВ кабелем марки АПвПг сечением 3х185 мм2 \n(1 цепное исполнение)\n",2000510]
["2.2.8.4","КЛ-10(6) кВ кабелем марки АПвПг сечением 3х240 мм2 \n(1 цепное исполнение)\n",2029640]
["2.2.9.","Кабель с изоляцией из сшитого полиэтилена и медной токопроводящей жилой (прокладка в траншее)"]
["2.2.9.1","КЛ-10(6) кВ кабелем марки ПвПг сечением 3х(1х95) мм2 (1 цепное исполнение)\n",737990]
["2.2.9.2","КЛ-10(6) кВ кабелем марки ПвПг сечением 3х(1х120) мм2 (1 цепное исполнение)\n",831450]
["2.2.9.3","КЛ-10(6) кВ кабелем марки ПвПг сечением 3х(1х150) мм2 (1 цепное исполнение)\n",922970]
["2.2.9.4","КЛ-10(6) кВ кабелем марки ПвПг сечением 3х(1х185) мм2 (1 цепное исполнение)\n",1039530]
["2.2.9.5","КЛ-10(6) кВ кабелем марки ПвПг сечением 3х(1х240) мм2 (1 цепное исполнение)\n",1256720]
["2.2.9.6","КЛ-10(6) кВ кабелем марки ПвПг сечением 3х(1х400) мм2 (1 цепное исполнение)\n",1733190]
["2.2.9.7","КЛ-10(6) кВ кабелем марки ПвПг сечением 3х(1х630) мм2 (1 цепное исполнение)\n",2712590]
["2.2.10.","Кабель с изоляцией из сшитого полиэтилена и медной токопроводящей жилой (прокладка методом горизонтально-направленного бурения)"]
["2.2.10.1","КЛ-10(6) кВ кабелем марки ПвПг сечением 3х(1х95) мм2 (1 цепное исполнение)\n",2413320]
["2.2.10.2","КЛ-10(6) кВ кабелем марки ПвПг сечением 3х(1х120) мм2 (1 цепное исполнение)\n",2519690]
["2.2.10.3","КЛ-10(6) кВ кабелем марки ПвПг сечением 3х(1х150) мм2 (1 цепное исполнение)\n",2614850]
["2.2.10.4","КЛ-10(6) кВ кабелем марки ПвПг сечением 3х(1х185) мм2 (1 цепное исполнение)\n",2736490]
["2.2.10.5","КЛ-10(6) кВ кабелем марки ПвПг сечением 3х(1х240) мм2 (1 цепное исполнение)\n",2951920]
["2.2.10.6","КЛ-10(6) кВ кабелем марки ПвПг сечением 3х(1х400) мм2 (1 цепное исполнение)\n",4114490]
["2.2.10.7","КЛ-10(6) кВ кабелем марки ПвПг сечением 3х(1х630) мм2 (1 цепное исполнение)\n",5148250]
["2.2.11.","Кабель бронированный с изоляцией из ПВХ пластиката и медной токопроводящей жилой (прокладка в траншее)"]
["2.2.11.1","КЛ-10(6) кВ кабелем марки ВБбШв сечением 3х95 мм2 (1 цепное исполнение)\n",396600]
["2.2.11.2","КЛ-10(6) кВ кабелем марки ВБбШв сечением 3х120 мм2 (1 цепное исполнение)\n",461970]
["2.2.11.3","КЛ-10(6) кВ кабелем марки ВБбШв сечением 3х240 мм2 (1 цепное исполнение)\n",742440]
["2.2.11.4","КЛ-10(6) кВ кабелем марки ВБбШв сечением 3х95 мм2 (2 цепное исполнение)\n",743730]
["2.2.11.5","КЛ-10(6) кВ кабелем марки ВБбШв сечением 3х120 мм2 (2 цепное исполнение)\n",874420]
["2.2.11.6","КЛ-10(6) кВ кабелем марки ВБбШв сечением 3х240 мм2 (2 цепное исполнение)\n",1445930]
["2.3.","КЛ-20 кВ"]
["2.3.1","Кабель с изоляцией из сшитого полиэтилена и алюминиевой токопроводящей жилой (прокладка методом горизонтально-направленного бурения)"]
["2.3.1.1","КЛ-20 кВ кабелем марки АПвПг сечением 3х(1х120) мм2 (1 цепное исполнение)\n",2190430]
["2.3.1.2","КЛ-20 кВ кВ кабелем марки АПвПг сечением 3х(1х150) мм2 (1 цепное исполнение)\n",2206160]
["2.3.1.3","КЛ-20 кВ кВ кабелем марки АПвПг сечением 3х(1х185) мм2 (1 цепное исполнение)\n",2226910]
["2.3.1.4","КЛ-20 кВ кВ кабелем марки АПвПг сечением 3х(1х240) мм2 (1 цепное исполнение)\n",2258630]
["2.3.1.5","КЛ-20 кВ кВ кабелем марки АПвПг сечением 3х(1х400) мм2 (1 цепное исполнение)\n",3020780]
["2.3.1.6","КЛ-20 кВ кВ кабелем марки АПвПг сечением 3х(1х630) мм2 (1 цепное исполнение)\n",3150510]
["2.3.2.","Кабель с изоляцией из сшитого полиэтилена и алюминиевой токопроводящей жилой (прокладка в траншее)"]
["2.3.2.1","КЛ-20 кВ кабелем марки АПвПг сечением 3х(1х120) мм2 (1 цепное исполнение)\n",551700]
["2.3.2.2","КЛ-20 кВ кВ кабелем марки АПвПг сечением 3х(1х150) мм2 (1 цепное исполнение)\n",568670]
["2.3.2.3","КЛ-20 кВ кВ кабелем марки АПвПг сечением 3х(1х185) мм2 (1 цепное исполнение)\n",589440]
["2.3.2.4","КЛ-20 кВ кВ кабелем марки АПвПг сечением 3х(1х240) мм2 (1 цепное исполнение)\n",622030]
["2.3.2.5","КЛ-20 кВ кВ кабелем марки АПвПг сечением 3х(1х400) мм2 (1 цепное исполнение)\n",700380]
["2.3.2.6","КЛ-20 кВ кВ кабелем марки АПвПг сечением 3х(1х630) мм2 (1 цепное исполнение)\n",862360]
["2.3.3.","Кабель с изоляцией из сшитого полиэтилена и алюминиевой токопроводящей жилой (прокладка методом горизонтально-направленного бурения)"]
["2.3.3.1","КЛ-20 кВ кабелем марки АПвПг сечением 3х(1х120) мм2 (1 цепное исполнение)\n",2190430]
["2.3.3.2","КЛ-20 кВ кВ кабелем марки АПвПг сечением 3х(1х150) мм2 (1 цепное исполнение)\n",2206160]
["2.3.3.3","КЛ-20 кВ кВ кабелем марки АПвПг сечением 3х(1х185) мм2 (1 цепное исполнение)\n",2226910]
["2.3.3.4","КЛ-20 кВ кВ кабелем марки АПвПг сечением 3х(1х240) мм2 (1 цепное исполнение)\n",2258630]
["2.3.3.5","КЛ-20 кВ кВ кабелем марки АПвПг сечением 3х(1х400) мм2 (1 цепное исполнение)\n",3020780]
["2.3.3.6","КЛ-20 кВ кВ кабелем марки АПвПг сечением 3х(1х630) мм2 (1 цепное исполнение)\n",3150510]
["2.4.","КЛ-35 кВ "]
["2.4.1.","Кабель с изоляцией из сшитого полиэтилена и медной токопроводящей жилой (прокладка в железобетонном лотке)\n"]
["2.4.1.1.","КЛ-35 кВ кабелем марки ПвКП сечением 3х(1х150/25) мм2 (1 цепное исполнение)\n",4655680]
["2.5.","КЛ-110 кВ  "]
["2.5.1.","Кабель с изоляцией из сшитого полиэтилена и медной токопроводящей жилой (прокладка в железобетонном лотке)\n"]
["2.5.1.1.","КЛ-110 кВ кабелем марки ПвПу2г сечением 3х(1х1200/240-110) мм2 (1 цепное исполнение)\n",8734175]
["Примечания:"]
["КЛ - кабельная линия"]
["Коэффициент перевода для подземной прокладки кабеля с медными жилами = 6,33"]
["Коэффициент перевода для подземной прокладки кабеля с алюминиевыми жилами = 6,05"]

{"sheet":"Трансформаторные подстанции","index":3,"n_rows":151,"n_cols":6,"rows_kept":151,"cut":false,"hidden":true,"merged":[[147,0,147,2],[148,0,148,2],[149,0,149,2],[150,0,150,2],[146,0,146,2],[0,0,0,5],[42,1,42,5],[22,1,22,5],[46,1,46,5],[107,1,107,5],[3,1,3,5],[18,1,18,5],[92,1,92,5],[96,1,96,5],[25,1,25,5],[28,1,28,5],[34,1,34,5],[38,1,38,5],[59,1,59,5],[100,1,100,5],[105,1,105,5],[72,1,72,5],[82,1,82,5],[145,0,145,2],[144,0,144,2],[116,1,116,5],[120,1,120,5],[130,1,130,5],[136,1,136,5]]}
["Стандартизированная тарифная ставка на покрытие расходов сетевых организаций на территории Свердловской области на строительство подстанций С4, руб./кВт (без НДС, без налога на прибыль)"]
[]
["№ п/п","Наименование стандартизированной тарифной ставки","Размер стандартизированной тарифной ставки","Выберите тип подстанции (+)",null,"Максимальная мощность, кВт"]
["3.1.","Комплектные трансформаторные подстанции на номинальное напряжение 10(6)/0,4 кВ"]
["3.1.1.","КТП-25 с трансформатором ТМГ-1х25 кВА на номинальное напряжение 10(6)/0,4 кВ",3986,null,{"$f":"IF(D5=\"+\",1,0)","v":0},{"$f":"IF(D5=\"+\",Калькулятор!$C$10,\"\")","v":""}]
["3.1.2.","КТП-40 с трансформатором ТМГ-1х40 кВА на номинальное напряжение 10(6)/0,4 кВ",3828,null,{"$f":"IF(D6=\"+\",1,0)","v":0},{"$f":"IF(D6=\"+\",Калькулятор!$C$10,\"\")","v":""}]
["3.1.3.","КТП-63 с трансформатором ТМГ-1х63 кВА на номинальное напряжение 10(6)/0,4 кВ",1686,null,0,{"$f":"IF(D7=\"+\",Калькулятор!$C$10,\"\")","v":""}]
["3.1.4.","КТП-100 с трансформатором ТМГ-1х100 кВА на номинальное напряжение 10(6)/0,4 кВ",1312,null,0,{"$f":"IF(D8=\"+\",Калькулятор!$C$10,\"\")","v":""}]
["3.1.5.","КТП-160 с трансформатором ТМГ-1х160 кВА на номинальное напряжение 10(6)/0,4 кВ",879,null,0,{"$f":"IF(D9=\"+\",Калькулятор!$C$10,\"\")","v":""}]
["3.1.6.","КТП-250 с трансформатором ТМГ-1х250 кВА на номинальное напряжение 10(6)/0,4 кВ",588,null,0,{"$f":"IF(D10=\"+\",Калькулятор!$C$10,\"\")","v":""}]
["3.1.7.","КТП-400 с трансформатором ТМГ-1х400 кВА на номинальное напряжение 10(6)/0,4 кВ",406,null,0,{"$f":"IF(D11=\"+\",Калькулятор!$C$10,\"\")","v":""}]
["3.1.8.","КТП-630 с трансформатором ТМГ-1х630 кВА на номинальное напряжение 10(6)/0,4 кВ",303,null,{"$f":"IF(D12=\"+\",1,0)","v":0},{"$f":"IF(D12=\"+\",Калькулятор!$C$10,\"\")","v":""}]
["3.1.9.","КТП-1000 с трансформатором ТМГ-1х1000 кВА на номинальное напряжение 10(6)/0,4 кВ",300,null,0,{"$f":"IF(D13=\"+\",Калькулятор!$C$10,\"\")","v":""}]
["3.1.10.","2КТП-100 с трансформаторами ТМГ-2х100 кВА на номинальное напряжение 10(6)/0,4 кВ",1336,null,0,{"$f":"IF(D14=\"+\",Калькулятор!$C$10,\"\")","v":""}]
["3.1.11.","2КТП-160 с трансформаторами ТМГ-2х160 кВА на номинальное напряжение 10(6)/0,4 кВ",762,null,0,{"$f":"IF(D15=\"+\",Калькулятор!$C$10,\"\")","v":""}]
["3.1.12.","2КТП-250 с трансформаторами ТМГ-2х250 кВА на номинальное напряжение 10(6)/0,4 кВ",537,null,0,{"$f":"IF(D16=\"+\",Калькулятор!$C$10,\"\")","v":""}]
["3.1.13.","2КТП-400 с трансформаторами ТМГ-2х400 кВА на номинальное напряжение 10(6)/0,4 кВ",342,null,0,{"$f":"IF(D17=\"+\",Калькулятор!$C$10,\"\")","v":""}]
["3.1.14.","2КТП-630 с трансформаторами ТМГ-2х630 кВА на номинальное напряжение 10(6)/0,4 кВ",243,null,0,{"$f":"IF(D18=\"+\",Калькулятор!$C$10,\"\")","v":""}]
["3.2.","Комплектные трансформаторные подстанции из панелей типа \"сэндвич\" (тупиковые) на номинальное напряжение 10(6)/0,4 кВ"]
["3.2.1.","КТП-ТВ-250, с трансформатором ТМГ-1х250 кВА на номинальное напряжение 10(6)/0,4 кВ",638,null,0,{"$f":"IF(D20=\"+\",Калькулятор!$C$10,\"\")","v":""}]
["3.2.2.","КТП-ТВ-400, с трансформатором ТМГ-1х400 кВА на номинальное напряжение 10(6)/0,4 кВ",405,null,0,{"$f":"IF(D21=\"+\",Калькулятор!$C$10,\"\")","v":""}]
["3.2.3.","КТП-ТВ-630, с трансформатором ТМГ-1х630 кВА на номинальное напряжение 10(6)/0,4 кВ",285,null,0,{"$f":"IF(D22=\"+\",Калькулятор!$C$10,\"\")","v":""}]
["3.3.","Комплектные трансформаторные подстанции из панелей типа \"сэндвич\" (транзитные с воздушным вводом) на номинальное напряжение 10(6)/0,4 кВ"]
["3.3.1.","КТП-ПВ-63, с трансформатором ТМГ-1х63 кВА на номинальное напряжение 10(6)/0,4 кВ",2104,null,0,{"$f":"IF(D24=\"+\",Калькулятор!$C$10,\"\")","v":""}]
["3.3.2.","КТП-ПВ-100, с трансформатором ТМГ-1х100 кВА на номинальное напряжение 10(6)/0,4 кВ",1395,null,0,{"$f":"IF(D25=\"+\",Калькулятор!$C$10,\"\")","v":""}]
["3.4.","Комплектные трансформаторные подстанции из панелей типа \"сэндвич\" (транзитные с кабельным вводом) на номинальное напряжение 10(6)/0,4 кВ"]
["3.4.1.","КТП-ПК-63, с трансформатором ТМГ-1х63 кВА на номинальное напряжение 10(6)/0,4 кВ",2005,null,0,{"$f":"IF(D27=\"+\",Калькулятор!$C$10,\"\")","v":""}]
["3.4.2.","КТП-ПК-100, с трансформатором ТМГ-1х100 кВА на номинальное напряжение 10(6)/0,4 кВ",1391,null,0,{"$f":"IF(D28=\"+\",Калькулятор!$C$10,\"\")","v":""}]
["3.5.","Комплектные трансформаторные подстанции (тупиковые) в железобетонном корпусе на номинальное напряжение 10(6)/0,4 кВ"]
["3.5.1.","КТП-Б-100 с трансформатором ТМГ-1х100 кВА на номинальное напряжение 10(6)/0,4 кВ",3634,null,0,{"$f":"IF(D30=\"+\",Калькулятор!$C$10,\"\")","v":""}]
["3.5.2.","КТП-Б-160 с трансформатором ТМГ-1х160 кВА на номинальное напряжение 10(6)/0,4 кВ",1987,null,0,{"$f":"IF(D31=\"+\",Калькулятор!$C$10,\"\")","v":""}]
["3.5.3.","КТП-Б-250 с трансформатором ТМГ-1х250 кВА на номинальное напряжение 10(6)/0,4 кВ",1418,null,0,{"$f":"IF(D32=\"+\",Калькулятор!$C$10,\"\")","v":""}]
["3.5.4.","КТП-Б-400 с трансформатором ТМГ-1х400 кВА на номинальное напряжение 10(6)/0,4 кВ",916,null,{"$f":"IF(D33=\"+\",1,0)","v":0},{"$f":"IF(D33=\"+\",Калькулятор!$C$10,\"\")","v":""}]
["3.5.5.","КТП-Б-630 с трансформатором ТМГ-1х630 кВА на номинальное напряжение 10(6)/0,4 кВ",613,null,{"$f":"IF(D34=\"+\",1,0)","v":0},{"$f":"IF(D34=\"+\",Калькулятор!$C$10,\"\")","v":""}]
["3.6.","Комплектные трансформаторные подстанции (тупиковые) в железобетонном корпусе на номинальное напряжение 20(6)/0,4 кВ"]
["3.6.1.","КТП-Б-250 с трансформатором ТМГ-1х250 кВА на номинальное напряжение 20(6)/0,4 кВ",1655,null,0,{"$f":"IF(D36=\"+\",Калькулятор!$C$10,\"\")","v":""}]
["3.6.2.","КТП-Б-400 с трансформатором ТМГ-1х400 кВА на номинальное напряжение 20(6)/0,4 кВ",1089,null,0,{"$f":"IF(D37=\"+\",Калькулятор!$C$10,\"\")","v":""}]
["3.6.3.","КТП-Б-630 с трансформатором ТМГ-1х630 кВА на номинальное напряжение 20(6)/0,4 кВ",781,null,0,{"$f":"IF(D38=\"+\",Калькулятор!$C$10,\"\")","v":""}]
["3.7.","Комплектные трансформаторные подстанции (транзитные) в железобетонном корпусе на номинальное напряжение 10(6)/0,4 кВ"]
["3.7.1.","КТП-Б-250 с трансформатором ТМГ-1х250 кВА на номинальное напряжение 10(6)/0,4 кВ",1497,null,0,{"$f":"IF(D40=\"+\",Калькулятор!$C$10,\"\")","v":""}]
["3.7.2.","КТП-Б-400 с трансформатором ТМГ-1х400 кВА на номинальное напряжение 10(6)/0,4 кВ",965,null,0,{"$f":"IF(D41=\"+\",Калькулятор!$C$10,\"\")","v":""}]
["3.7.3.","КТП-Б-630 с трансформатором ТМГ-1х630 кВА на номинальное напряжение 10(6)/0,4 кВ",644,null,0,{"$f":"IF(D42=\"+\",Калькулятор!$C$10,\"\")","v":""}]
["3.8.","Комплектные трансформаторные подстанции (транзитные) в железобетонном корпусе на номинальное напряжение 20(6)/0,4 кВ"]
["3.8.1.","КТП-Б-250 с трансформатором ТМГ-1х250 кВА на номинальное напряжение 20(6)/0,4 кВ",1813,null,0,{"$f":"IF(D44=\"+\",Калькулятор!$C$10,\"\")","v":""}]
["3.8.2.","КТП-Б-400 с трансформатором ТМГ-1х400 кВА на номинальное напряжение 20(6)/0,4 кВ",1187,null,0,{"$f":"IF(D45=\"+\",Калькулятор!$C$10,\"\")","v":""}]
["3.8.3.","КТП-Б-630 с трансформатором ТМГ-1х630 кВА на номинальное напряжение 20(6)/0,4 кВ",785,null,0,{"$f":"IF(D46=\"+\",Калькулятор!$C$10,\"\")","v":""}]
["3.9.","Блочные комплектные трансформаторные подстанции (тупиковые) на номинальное напряжение 20(10)/0,4 кВ "]
["3.9.1.","1БКТП-160 с трансформатором ТМГ-1х160 кВА, РШНН-16, РУ-10 кВ на номинальное напряжение 20(10)/0,4 кВ",3817,null,0,{"$f":"IF(D48=\"+\",Калькулятор!$C$10,\"\")","v":""}]
["3.9.2.","1БКТП-250 с трансформатором ТМГ-1х250 кВА, РШНН-16, РУ-10 кВ на номинальное напряжение 20(10)/0,4 кВ",2637,null,0,{"$f":"IF(D49=\"+\",Калькулятор!$C$10,\"\")","v":""}]
["3.9.3.","1БКТП-400 с трансформатором ТМГ-1х400 кВА, РШНН-16, РУ-10 кВ на номинальное напряжение 20(10)/0,4 кВ",1680,null,{"$f":"IF(D50=\"+\",1,0)","v":0},{"$f":"IF(D50=\"+\",Калькулятор!$C$10,\"\")","v":""}]
["3.9.4.","1БКТП-630 с трансформатором ТМГ-1х630 кВА, РШНН-16, РУ-10 кВ на номинальное напряжение 20(10)/0,4 кВ",1096,null,null,{"$f":"IF(D51=\"+\",Калькулятор!$C$10,\"\")","v":""}]
["3.9.5.","1БКТП-1000 с трансформатором ТМГ-1х1000 кВА, РШНН-16, РУ-10 кВ на номинальное напряжение 20(10)/0,4 кВ",726,null,{"$f":"IF(D52=\"+\",1,0)","v":0},{"$f":"IF(D52=\"+\",Калькулятор!$C$10,\"\")","v":""}]
["3.9.6.","1БКТП-1250 с трансформатором ТМГ-1х1250 кВА, РШНН-16, РУ-10 кВ на номинальное напряжение 20(10)/0,4 кВ",613,null,{"$f":"IF(D53=\"+\",1,0)","v":0},{"$f":"IF(D53=\"+\",Калькулятор!$C$10,\"\")","v":""}]
["3.9.7.","1БКТП-1600 с трансформатором ТМГ-1х1600 кВА, РШНН-16, РУ-10 кВ на номинальное напряжение 20(10)/0,4 кВ",613,null,{"$f":"IF(D54=\"+\",1,0)","v":0},{"$f":"IF(D54=\"+\",Калькулятор!$C$10,\"\")","v":""}]
["3.9.8.","2БКТП-400 с трансформаторами ТМГ-2х400 кВА, РШНН-16, РУ-10 кВ на номинальное напряжение 10(6)/0,4 кВ",1534,null,{"$f":"IF(D55=\"+\",1,0)","v":0},{"$f":"IF(D55=\"+\",Калькулятор!$C$10,\"\")","v":""}]
["3.9.9.","2БКТП-630 с трансформаторами ТМГ-2х630 кВА, РШНН-16, РУ-10 кВ на номинальное напряжение 10(6)/0,4 кВ",1004,null,null,{"$f":"IF(D56=\"+\",Калькулятор!$C$10,\"\")","v":""}]
["3.9.10.","2БКТП-1000 с трансформаторами ТМГ-2х1000 кВА, РШНН-16,РУ-10 кВ на номинальное напряжение 10(6)/0,4 кВ",668,null,{"$f":"IF(D57=\"+\",1,0)","v":0},{"$f":"IF(D57=\"+\",Калькулятор!$C$10,\"\")","v":""}]
["3.9.11.","2БКТП-1250 с трансформаторами ТМГ-2х1250 кВА, РШНН-16,РУ-10 кВ на номинальное напряжение 10(6)/0,4 кВ",567,null,null,{"$f":"IF(D58=\"+\",Калькулятор!$C$10,\"\")","v":""}]
["3.9.12.","3БКТП-1600 с трансформаторами ТМГ-2х1600 кВА, РШНН-16, РУ-10 кВ на номинальное напряжение 10(6)/0,4 кВ",568,null,{"$f":"IF(D59=\"+\",1,0)","v":0},{"$f":"IF(D59=\"+\",Калькулятор!$C$10,\"\")","v":""}]
["3.10.","Блочные комплектные трансформаторные подстанции (транзитные) на номинальное напряжение 20/10(6)/0,4 кВ"]
["3.10.1.","1БКТП-400 с трансформатором ТМГ-1х400 кВА, РШНН-16, РУ-10 кВ на номинальное напряжение 20(10)/0,4 кВ",1876,null,{"$f":"IF(D61=\"+\",1,0)","v":0},{"$f":"IF(D61=\"+\",Калькулятор!$C$10,\"\")","v":""}]
["3.10.2.","1БКТП-630 с трансформатором ТМГ-1х630 кВА, РШНН-16, РУ-10кВ на номинальное напряжение 20(10)/0,4 кВ",1221,null,{"$f":"IF(D62=\"+\",1,0)","v":0},{"$f":"IF(D62=\"+\",Калькулятор!$C$10,\"\")","v":""}]
["3.10.3.","1БКТП-1000 с трансформатором ТМГ-1х1000 кВА, РШНН-16, РУ-10 кВ на номинальное напряжение 20(10)/0,4 кВ",804,null,{"$f":"IF(D63=\"+\",1,0)","v":0},{"$f":"IF(D63=\"+\",Калькулятор!$C$10,\"\")","v":""}]
["3.10.4.","1БКТП-1250 с трансформатором ТМГ-1х1250 кВА, РШНН-16, РУ-10 кВ на номинальное напряжение 20(10)/0,4 кВ",676,null,null,{"$f":"IF(D64=\"+\",Калькулятор!$C$10,\"\")","v":""}]
["3.10.5.","1БКТП-1600 с трансформатором ТМГ-1х1600 кВА, РШНН-16, РУ-10кВ на номинальное напряжение 20(10)/0,4 кВ",671,null,{"$f":"IF(D65=\"+\",1,0)","v":0},{"$f":"IF(D65=\"+\",Калькулятор!$C$10,\"\")","v":""}]
["3.10.6.","2БКТП-160 с трансформаторами ТМГ-2х160 кВА, РШНН-16, РУ-10кВ на номинальное напряжение 10(6)/0,4 кВ",3866]
["3.10.7.","2БКТП-250 с трансформаторами ТМГ-2х250 кВА, РШНН-16, РУ-10кВ на номинальное напряжение 10(6)/0,4 кВ",2540]
["3.10.8.","2БКТП-400 с трансформаторами ТМГ-2х400 кВА, РШНН-16, РУ-10кВ на номинальное напряжение 20(10)/0,4 кВ",1730,null,{"$f":"IF(D68=\"+\",1,0)","v":0},{"$f":"IF(D68=\"+\",Калькулятор!$C$10,\"\")","v":""}]
["3.10.9.","2БКТП-630 с трансформаторами ТМГ-2х630 кВА, РШНН-16, РУ-10 кВ на номинальное напряжение 20(10)/0,4 кВ",1128,null,{"$f":"IF(D69=\"+\",1,0)","v":0},{"$f":"IF(D69=\"+\",Калькулятор!$C$10,\"\")","v":""}]
["3.10.10.","2БКТП-1000 с трансформаторами ТМГ-2х1000 кВА, РШНН-16, РУ-10 кВ на номинальное напряжение 20(10)/0,4 кВ",746,null,{"$f":"IF(D70=\"+\",1,0)","v":0},{"$f":"IF(D70=\"+\",Калькулятор!$C$10,\"\")","v":""}]
["3.10.11.","2БКТП-1250 с трансформаторами ТМГ-2х1250 кВА, РШНН-16, РУ-10 кВ на номинальное напряжение 20(10)/0,4 кВ",630,null,null,{"$f":"IF(D71=\"+\",Калькулятор!$C$10,\"\")","v":""}]
["3.10.12.","3БКТП-1600 с трансформаторами ТМГ-2х1600 кВА, РШНН-16, РУ-10 кВ на номинальное напряжение 20(10)/0,4 кВ",617,null,{"$f":"IF(D72=\"+\",1,0)","v":0},{"$f":"IF(D72=\"+\",Калькулятор!$C$10,\"\")","v":""}]
["3.11.","Блочные комплектные распределительные пункты (транзитные) на номинальное напряжение 10(6)/0,4 кВ"]
["3.11.1.","4БКРП-630, с трансформаторами ТМГ-2х630 кВА, 12 ячеек на номинальное напряжение 10(6)/0,4 кВ",2867,null,{"$f":"IF(D74=\"+\",1,0)","v":0},{"$f":"IF(D74=\"+\",Калькулятор!$C$10,\"\")","v":""}]
["3.11.2.","4БКРП-630, с трансформаторами ТМГ-2х630 кВА, 18 ячеек на номинальное напряжение 10(6)/0,4 кВ",3849,null,{"$f":"IF(D75=\"+\",1,0)","v":0},{"$f":"IF(D75=\"+\",Калькулятор!$C$10,\"\")","v":""}]
["3.11.3.","5БКРП-630, с трансформаторами ТМГ-2х630 кВА, 24 ячейки на номинальное напряжение 10(6)/0,4 кВ",4682,null,{"$f":"IF(D76=\"+\",1,0)","v":0},{"$f":"IF(D76=\"+\",Калькулятор!$C$10,\"\")","v":""}]
["3.11.4.","4БКРП-1000 с трансформаторами ТМГ-2х1000 кВА, 12 ячеек на номинальное напряжение 10(6)/0,4 кВ",1865,null,null,{"$f":"IF(D77=\"+\",Калькулятор!$C$10,\"\")","v":""}]
["3.11.5.","4БКРП-1000 с трансформаторами ТМГ-2х1000 кВА, 18 ячеек на номинальное напряжение 10(6)/0,4 кВ",2484,null,{"$f":"IF(D78=\"+\",1,0)","v":0},{"$f":"IF(D78=\"+\",Калькулятор!$C$10,\"\")","v":""}]
["3.11.6.","5БКРП-1000 с трансформаторами ТМГ-2х1000 кВА, 24 ячейки на номинальное напряжение 10(6)/0,4 кВ",3009,null,{"$f":"IF(D79=\"+\",1,0)","v":0},{"$f":"IF(D79=\"+\",Калькулятор!$C$10,\"\")","v":""}]
["3.11.7.","5БКРП-1600 с трансформаторами ТМГ-2х1600 кВА, 12 ячеек на номинальное напряжение 10(6)/0,4 кВ",1311,null,{"$f":"IF(D80=\"+\",1,0)","v":0},{"$f":"IF(D80=\"+\",Калькулятор!$C$10,\"\")","v":""}]
["3.11.8.","5БКРП-1600 с трансформаторами ТМГ-2х1600 кВА, 18 ячеек на номинальное напряжение 10(6)/0,4 кВ",1688,null,{"$f":"IF(D81=\"+\",1,0)","v":0},{"$f":"IF(D81=\"+\",Калькулятор!$C$10,\"\")","v":""}]
["3.11.9.","6БКРП-1600 с трансформаторами ТМГ-2х1600 кВА, 24 ячейки на номинальное напряжение 10(6)/0,4 кВ",2025,null,null,{"$f":"IF(D82=\"+\",Калькулятор!$C$10,\"\")","v":""}]
["3.12.","Блочные комплектные распределительные пункты (транзитные) на номинальное напряжение 20/0,4 кВ"]
["3.12.1.","5БКРП-630, с трансформаторами ТМГ-2х630 кВА, 12 ячеек на номинальное напряжение 20/0,4 кВ",3981,null,{"$f":"IF(D84=\"+\",1,0)","v":0},{"$f":"IF(D84=\"+\",Калькулятор!$C$10,\"\")","v":""}]
["3.12.2.","5БКРП-630, с трансформаторами ТМГ-2х630 кВА, 18 ячеек на номинальное напряжение 20/0,4 кВ",4953,null,{"$f":"IF(D85=\"+\",1,0)","v":0},{"$f":"IF(D85=\"+\",Калькулятор!$C$10,\"\")","v":""}]
["3.12.3.","5БКРП-630, с трансформаторами ТМГ-2х630 кВА, 22 ячейки на номинальное напряжение 20/0,4 кВ",5768,null,{"$f":"IF(D86=\"+\",1,0)","v":0},{"$f":"IF(D86=\"+\",Калькулятор!$C$10,\"\")","v":""}]
["3.12.4.","5БКРП-1000 с трансформаторами ТМГ-2х1000 кВА, 12 ячеек на номинальное напряжение 20/0,4 кВ",2567,null,null,{"$f":"IF(D87=\"+\",Калькулятор!$C$10,\"\")","v":""}]
["3.12.5.","5БКРП-1000 с трансформаторами ТМГ-2х1000 кВА, 18 ячеек на номинальное напряжение 20/0,4 кВ",3179,null,{"$f":"IF(D88=\"+\",1,0)","v":0},{"$f":"IF(D88=\"+\",Калькулятор!$C$10,\"\")","v":""}]
["3.12.6.","5БКРП-1000 с трансформаторами ТМГ-2х1000 кВА, 22 ячейки на номинальное напряжение 20/0,4 кВ",3693,null,{"$f":"IF(D89=\"+\",1,0)","v":0},{"$f":"IF(D89=\"+\",Калькулятор!$C$10,\"\")","v":""}]
["3.12.7.","5БКРП-1600 с трансформаторами ТМГ-2х1600 кВА, 12 ячеек на номинальное напряжение 20/0,4 кВ",1741,null,{"$f":"IF(D90=\"+\",1,0)","v":0},{"$f":"IF(D90=\"+\",Калькулятор!$C$10,\"\")","v":""}]
["3.12.8.","5БКРП-1600 с трансформаторами ТМГ-2х1600 кВА, 18 ячеек на номинальное напряжение 20/0,4 кВ",2124,null,{"$f":"IF(D91=\"+\",1,0)","v":0},{"$f":"IF(D91=\"+\",Калькулятор!$C$10,\"\")","v":""}]
["3.12.9.","5БКРП-1600 с трансформаторами ТМГ-2х1600 кВА, 22 ячейки на номинальное напряжение 20/0,4 кВ",2445,null,null,{"$f":"IF(D92=\"+\",Калькулятор!$C$10,\"\")","v":""}]
["3.13.","Блочные комплектные распределительные пункты на номинальное напряжение 10(6)/0,4 кВ с током сборных шин 10 кВ до 630 А "]
["3.13.1.","4БКРП-1000 с трансформаторами ТМГ-2х1000 кВА, 12 ячеек на номинальное напряжение 10(6)/0,4 кВ с током сборных шин 10 кВ до 630 А ",1856,null,{"$f":"IF(D94=\"+\",1,0)","v":0},{"$f":"IF(D94=\"+\",Калькулятор!$C$10,\"\")","v":""}]
["3.13.2.","4БКРП-1000 с трансформаторами ТМГ-2х1000 кВА, 18 ячеек на номинальное напряжение 10(6)/0,4 кВ с током сборных шин 10 кВ до 630 А ",2239,null,{"$f":"IF(D95=\"+\",1,0)","v":0},{"$f":"IF(D95=\"+\",Калькулятор!$C$10,\"\")","v":""}]
["3.13.3.","4БКРП-1000 с трансформаторами ТМГ-2х1000 кВА, 24 ячейки на номинальное напряжение 10(6)/0,4 кВ с током сборных шин 10 кВ до 630 А ",2553,null,{"$f":"IF(D96=\"+\",1,0)","v":0},{"$f":"IF(D96=\"+\",Калькулятор!$C$10,\"\")","v":""}]
["3.14.","Стационарные трансформаторные подстанции "]
["3.14.1.","ТП с трансформаторами 2х250 кВА",2160,null,{"$f":"IF(D98=\"+\",1,0)","v":0},{"$f":"IF(D98=\"+\",Калькулятор!$C$10,\"\")","v":""}]
["3.14.2.","ТП с трансформаторами 2х400 кВА",1402,null,{"$f":"IF(D99=\"+\",1,0)","v":0},{"$f":"IF(D99=\"+\",Калькулятор!$C$10,\"\")","v":""}]
["3.14.3.","ТП с трансформаторами 2х630 кВА",948,null,{"$f":"IF(D100=\"+\",1,0)","v":0},{"$f":"IF(D100=\"+\",Калькулятор!$C$10,\"\")","v":""}]
["3.15.","Мачтовые трансформаторные подстанции на номинальное напряжение 10(6)/0,4 кВ"]
["3.15.1.","МТП с трансформатором 1х25 кВА номинальным напряжением  10(6)/0,4 кВ",3335,null,{"$f":"IF(D102=\"+\",1,0)","v":0},{"$f":"IF(D102=\"+\",Калькулятор!$C$10,\"\")","v":""}]
["3.15.2.","МТП с трансформатором 1х40 кВА номинальным напряжением 10(6)/0,4 кВ",2206,null,{"$f":"IF(D103=\"+\",1,0)","v":0},{"$f":"IF(D103=\"+\",Калькулятор!$C$10,\"\")","v":""}]
["3.15.3.","МТП с трансформатором 1х63 кВА номинальным напряжением 10(6)/0,4 кВ",1158,null,{"$f":"IF(D104=\"+\",1,0)","v":0},{"$f":"IF(D104=\"+\",Калькулятор!$C$10,\"\")","v":""}]
["3.15.4.","МТП с трансформатором 1х100 кВА номинальным напряжением 10(6)/0,4 кВ",756,null,{"$f":"IF(D105=\"+\",1,0)","v":0},{"$f":"IF(D105=\"+\",Калькулятор!$C$10,\"\")","v":""}]
["3.16.","Пункты секционирования"]
["3.16.1.","Стационарный распределительный пункт с трансформаторами собственных нужд на номинальное напряжение 10(6) кВ",898,null,{"$f":"IF(D107=\"+\",1,0)","v":0},{"$f":"IF(D107=\"+\",Калькулятор!$C$10,\"\")","v":""}]
["3.16.2","Блочные комплектные распределительные пункты на номинальное напряжение 10(6) кВ и 20 кВ"]
["3.16.2.1.","БКРП, без трансформаторов ТМГ, 18 ячеек на номинальное напряжение 10(6) кВ",809,null,{"$f":"IF(D109=\"+\",1,0)","v":0},{"$f":"IF(D109=\"+\",Калькулятор!$C$10,\"\")","v":""}]
["3.16.2.2.","БКРП, без трансформаторов ТМГ, 22 ячеек на номинальное напряжение 10(6) кВ",923,null,{"$f":"IF(D110=\"+\",1,0)","v":0},{"$f":"IF(D110=\"+\",Калькулятор!$C$10,\"\")","v":""}]
["3.16.2.3.","БКРП, без трансформаторов ТМГ, 18 ячеек на номинальное напряжение 20 кВ",838,null,null,{"$f":"IF(D111=\"+\",Калькулятор!$C$10,\"\")","v":""}]
["3.16.2.4.","БКРП, без трансформаторов ТМГ, 22 ячеек на номинальное напряжение 20 кВ",955,null,{"$f":"IF(D112=\"+\",1,0)","v":0},{"$f":"IF(D112=\"+\",Калькулятор!$C$10,\"\")","v":""}]
["3.16.3.","Реклоузеры",null,null,{"$f":"IF(D113=\"+\",1,0)","v":0},{"$f":"IF(D113=\"+\",Калькулятор!$C$10,\"\")","v":""}]
["3.16.3.1.","Реклоузер 10(6) кВ (с установкой железобетонной опоры)",230,null,{"$f":"IF(D114=\"+\",1,0)","v":0},{"$f":"IF(D114=\"+\",Калькулятор!$C$10,\"\")","v":""}]
["3.16.3.2.","Реклоузер 10(6) кВ с пунктом коммерческого учета (с установкой железобетонной опоры)",292,null,null,{"$f":"IF(D115=\"+\",Калькулятор!$C$10,\"\")","v":""}]
["3.16.3.3.","Реклоузер 35 кВ (с установкой железобетонной опоры)",601,null,{"$f":"IF(D116=\"+\",1,0)","v":0},{"$f":"IF(D116=\"+\",Калькулятор!$C$10,\"\")","v":""}]
["3.17.","Прочее оборудование"]
["3.17.1.","Разъединитель РНД 10(6) кВ",5,null,{"$f":"IF(D118=\"+\",1,0)","v":0},{"$f":"IF(D118=\"+\",Калькулятор!$C$10,\"\")","v":""}]
["3.17.2.","Разъединитель ПРВТ 10(6) кВ",54,null,{"$f":"IF(D119=\"+\",1,0)","v":0},{"$f":"IF(D119=\"+\",Калькулятор!$C$10,\"\")","v":""}]
["3.17.3.","Шкаф распределительный ШР",35,null,{"$f":"IF(D120=\"+\",1,0)","v":0},{"$f":"IF(D120=\"+\",Калькулятор!$C$10,\"\")","v":""}]
["3.18.","Подстанции 35/0,4 кВ"]
["3.18.1.","БКТП-100 с трансформатором 1х100 кВА",18747,null,{"$f":"IF(D122=\"+\",1,0)","v":0},{"$f":"IF(D122=\"+\",Калькулятор!$C$10,\"\")","v":""}]
["3.18.2.","БКТП-160 с трансформатором 1х160 кВА",11828,null,0,{"$f":"IF(D123=\"+\",Калькулятор!$C$10,\"\")","v":""}]
["3.18.3.","БКТП-250 с трансформатором 1х250 кВА",7641,null,0,{"$f":"IF(D124=\"+\",Калькулятор!$C$10,\"\")","v":""}]
["3.18.4.","БКТП-400 с трансформатором 1х400 кВА",4864,null,0,{"$f":"IF(D125=\"+\",Калькулятор!$C$10,\"\")","v":""}]
["3.18.5.","БКТП-630 с трансформатором 1х630 кВА",3173,null,0,{"$f":"IF(D126=\"+\",Калькулятор!$C$10,\"\")","v":""}]
["3.18.6.","БКТП-1000 с трансформатором 1х1000 кВА",2088,null,0,{"$f":"IF(D127=\"+\",Калькулятор!$C$10,\"\")","v":""}]
["3.18.7.","2БКТП-1250 с трансформатором 1х1250 кВА",2152,null,0,{"$f":"IF(D128=\"+\",Калькулятор!$C$10,\"\")","v":""}]
["3.18.8.","2БКТП-1600 с трансформатором 1х1600 кВА",1726,null,0,{"$f":"IF(D129=\"+\",Калькулятор!$C$10,\"\")","v":""}]
["3.18.9.","2БКТП-2500 с трансформатором 1х2500 кВА",1189,null,0,{"$f":"IF(D130=\"+\",Калькулятор!$C$10,\"\")","v":""}]
["3.19.","Подстанции 35/10(6) кВ"]
["3.19.1.","ПС 35/10(6) с трансформатором 1х2500 кВА",6682,null,{"$f":"IF(D132=\"+\",1,0)","v":0},{"$f":"IF(D132=\"+\",Калькулятор!$C$10,\"\")","v":""}]
["3.19.2.","ПС 35/10(6) с трансформатором 1х4000 кВА",4221,null,{"$f":"IF(D133=\"+\",1,0)","v":0},{"$f":"IF(D133=\"+\",Калькулятор!$C$10,\"\")","v":""}]
["3.19.3.","ПС 35/10(6) с трансформатором 1х6300 кВА",2735,null,{"$f":"IF(D134=\"+\",1,0)","v":0},{"$f":"IF(D134=\"+\",Калькулятор!$C$10,\"\")","v":""}]
["3.19.4.","ПС 35/10(6) с трансформатором 1х10000 кВА",1858,null,{"$f":"IF(D135=\"+\",1,0)","v":0},{"$f":"IF(D135=\"+\",Калькулятор!$C$10,\"\")","v":""}]
["3.19.5.","ПС 35/10(6) с трансформатором 1х16000 кВА",1194,null,{"$f":"IF(D136=\"+\",1,0)","v":0},{"$f":"IF(D136=\"+\",Калькулятор!$C$10,\"\")","v":""}]
["3.20.","Подстанции 110/10(6) кВ"]
["3.20.1.","ПС 110/10(6) с трансформатором 1х2500 кВА",5768,null,{"$f":"IF(D138=\"+\",1,0)","v":0},{"$f":"IF(D138=\"+\",Калькулятор!$C$10,\"\")","v":""}]
["3.20.2.","ПС 110/10(6) с трансформатором 1х4000 кВА",3614]
["3.20.3.","ПС 110/10(6) с трансформатором 1х6300 кВА",2393,null,0,{"$f":"IF(D140=\"+\",Калькулятор!$C$10,\"\")","v":""}]
["3.20.4.","ПС 110/10(6) с трансформатором 1х10000 кВА",1576,null,0,{"$f":"IF(D141=\"+\",Калькулятор!$C$10,\"\")","v":""}]
["3.20.5.","ПС 110/10(6) с трансформатором 1х16000 кВА",1010,null,0,{"$f":"IF(D142=\"+\",Калькулятор!$C$10,\"\")","v":""}]
["3.20.6.","ПС 110/10(6) с трансформатором 1х25000 кВА",674,null,0,{"$f":"IF(D143=\"+\",Калькулятор!$C$10,\"\")","v":""}]
["3.20.7.","ПС 110/10(6) с трансформатором 1х40000 кВА",456,null,0,{"$f":"IF(D144=\"+\",Калькулятор!$C$10,\"\")","v":""}]
["Примечания:"]
["КТП - комплектная трансформаторная подстанция;"]
["БКТП - блочная комплектная трансформаторная подстанция;"]
["БКРП - блочный комплектный распределительный пункт;"]
["ТП - трансформаторный пункт (подстанция);"]
["МТП - мачтовая трансформаторная подстанция;"]
["ПС - подстанция"]

{"sheet":"Расчет1","index":4,"n_rows":33,"n_cols":4,"rows_kept":33,"cut":false,"hidden":true,"merged":[[22,1,22,2],[32,1,32,2],[1,1,1,2],[17,1,17,2],[19,1,19,2],[21,1,21,2]]}
[]
[null,"Расчет платы за технологическое присоединение к электрическим сетям"]
[]
[null,"Наименование сетевой организации*:",{"$f":"Калькулятор!C4","v":0}]
[]
[null,"Уровень напряжения*, кВ:",{"$f":"Калькулятор!C6","v":0}]
[]
[null,"Категория надежности:",{"$f":"Калькулятор!C8","v":"третья"}]
[]
[null,"Максимальная мощность, кВт:",{"$f":"Калькулятор!C10","v":0}]
[]
[null,"Есть ли необходимость нового строительства?",{"$f":"Калькулятор!C13","v":0}]
[]
[]
[]
[]
[]
[null,"Расшифровка расчета платы за технологическое присоединение к электрическим сетям"]
[]
[null,"Плата за организационные мероприятия (\"чернила\")"]
[]
[null,"П1 = С1×N"]
[null,"( \"чернила\" )",null,"Примечания"]
[]
[null,"С1, руб./кВт",{"$f":"IF(C6=\"0,4 кВ\",IF(AND(C10>=0,C10<=15),VLOOKUP(C4,OrgUtv!$B$2:$BY$77,2,FALSE),IF(AND(C10>15,C10<=150),VLOOKUP(C4,OrgUtv!$B$2:$BY$77,5,FALSE),IF(AND(C10>150,C10<=670),VLOOKUP(C4,OrgUtv!$B$2:$BY$77,8,FALSE),IF(C10>670,VLOOKUP(C4,OrgUtv!$B$2:$BY$77,11,FALSE),0)))),IF(C6=\"6 - 10 кВ\",IF(AND(C10>=0,C10<=15),VLOOKUP(C4,OrgUtv!$B$2:$BY$77,14,FALSE),IF(AND(C10>15,C10<=150),VLOOKUP(C4,OrgUtv!$B$2:$BY$77,17,FALSE),IF(AND(C10>150,C10<=670),VLOOKUP(C4,OrgUtv!$B$2:$BY$77,20,FALSE),IF(AND(C10>670,C10<=8900),VLOOKUP(C4,OrgUtv!$B$2:$BY$77,23,FALSE),IF(C10>8900,VLOOKUP(C4,OrgUtv!$B$2:$BY$77,26,FALSE),0))))),IF(C6=\"0,4 кВ временная схема\",IF(AND(C10>=0,C10<=15),VLOOKUP(C4,OrgUtv!$B$2:$BY$77,29,FALSE),IF(AND(C10>15,C10<=150),VLOOKUP(C4,OrgUtv!$B$2:$BY$77,32,FALSE),IF(C10>150,VLOOKUP(C4,OrgUtv!$B$2:$BY$77,35,FALSE),0))),IF(C6=\"6 - 10 кВ временная схема\",IF(AND(C10>=0,C10<=15),VLOOKUP(C4,OrgUtv!$B$2:$BY$77,38,FALSE),IF(AND(C10>15,C10<=150),VLOOKUP(C4,OrgUtv!$B$2:$BY$77,41,FALSE),IF(AND(C10>150,C10<=8900),VLOOKUP(C4,OrgUtv!$B$2:$BY$77,44,FALSE),IF(C10>8900,VLOOKUP(C4,OrgUtv!$B$2:$BY$77,47,FALSE),0)))),IF(C6=\"20 кВ\",IF(AND(C10>=0,C10<=15),VLOOKUP(C4,OrgUtv!$B$2:$BY$77,50,FALSE),IF(C10>15,VLOOKUP(C4,OrgUtv!$B$2:$BY$77,53,FALSE),0)),IF(C6=\"20 кВ временная схема\",IF(AND(C10>=0,C10<=15),VLOOKUP(C4,OrgUtv!$B$2:$BY$77,56,FALSE),IF(C10>15,VLOOKUP(C4,OrgUtv!$B$2:$BY$77,59,FALSE),0)),IF(C6=\"35 кВ\",IF(AND(C10>=0,C10<=15),VLOOKUP(C4,OrgUtv!$B$2:$BY$77,62,FALSE),IF(AND(C10>15,C10<=150),VLOOKUP(C4,OrgUtv!$B$2:$BY$77,65,FALSE),IF(C10>150,VLOOKUP(C4,OrgUtv!$B$2:$BY$77,68,FALSE),0))),IF(C6=\"110 кВ\",IF(AND(C10>=0,C10<=150),VLOOKUP(C4,OrgUtv!$B$2:$BY$77,71,FALSE),IF(C10>150,VLOOKUP(C4,OrgUtv!$B$2:$BY$77,74,FALSE),0))))))))))","v":false},{"$f":"IF(C25=0,\"(для данной сетевой организации стандартизированная тарифная ставка С1 не утверждена)\",\"\")","v":""}]
[null,"N, кВт",{"$f":"Калькулятор!C10","v":0}]
[]
[null,"Плата за организационные мероприятия (\"чернила\"), руб. (без НДС)",{"$f":"C25*C26","v":0}]
[]
[]
[]
[]
[null,"Внимание! Данные расчеты носят справочный характер и не могут являться окончательными для оплаты стоимости технологического присоединения. \nКалькулятор расчета платы за технологическое присоединение к электрическим сетям предназначен для примерного расчета стоимости размера платы за технологическое присоединение к электрическим сетям территориальных сетевых организаций Свердловской области."]

{"sheet":"Расчет2","index":5,"n_rows":72,"n_cols":4,"rows_kept":72,"cut":false,"hidden":true,"merged":[[20,1,20,2],[1,1,1,2],[22,1,22,2],[24,1,24,2],[23,3,26,3],[71,1,71,2],[40,1,40,2],[42,1,42,2],[43,1,43,2],[25,1,25,2]]}
[]
[null,"Расчет платы за технологическое присоединение к электрическим сетям"]
[]
[null,"Наименование сетевой организации*:",{"$f":"Калькулятор!C4","v":0}]
[]
[null,"Уровень напряжения*, кВ:",{"$f":"Калькулятор!C6","v":0}]
[]
[null,"Категория надежности:",{"$f":"Калькулятор!C8","v":"третья"}]
[]
[null,"Максимальная мощность, кВт:",{"$f":"Калькулятор!C10","v":0}]
[]
[null,"Есть ли необходимость нового строительства?",{"$f":"Калькулятор!C13","v":0}]
[null,"Есть ли необходимость строительства воздушных линий?",{"$f":"Калькулятор!C14","v":0}]
[null,"Есть ли необходимость строительства кабельных линий?",{"$f":"Калькулятор!C15","v":0}]
[null,"Есть ли необходимость строительства транформаторных подстанций?",{"$f":"Калькулятор!C16","v":0}]
[]
[]
[]
[]
[]
[null,"Расшифровка расчета платы за технологическое присоединение к электрическим сетям"]
[]
[null,"Плата по стандартизированным тарифным ставкам",null,"Примечания"]
[null,null,null,"Плата за строительство ВЛ и КЛ предусмотрена в ценах 2001 года.\nДля перевода в текущий уровень цен, необходимо выбрать соответствующие коэффициенты (2 квартал 2017):\nКоэффициент перевода для воздушной прокладки провода с медными жилами = 3,83\nКоэффициент перевода для воздушной прокладки провода с алюминиевыми жилами = 4,3\nКоэффициент перевода для подземной прокладки кабеля с медными жилами = 6,33\nКоэффициент перевода для подземной прокладки кабеля с алюминиевыми жилами = 6,05"]
[null,"П1 = (С1×N) + (С2×L2) + (C3×L3) + (C4×N4)"]
[null,"( \"чернила\" + ВЛ + КЛ + ТП )"]
[]
[null,"С1, руб./кВт",{"$f":"Расчет1!C25","v":false},{"$f":"IF(C28=0,\"(для данной сетевой организации стандартизированная тарифная ставка С1 не утверждена)\",\"\")","v":""}]
[null,"N = N4, кВт",{"$f":"Калькулятор!C10","v":0}]
[]
[null,"Плата за организационные мероприятия (\"чернила\"), руб.",{"$f":"C28*C29","v":0},"(в текущем уровне цен)"]
[null,"Плата за строительство воздушных линий (ВЛ), руб.",{"$f":"SUMPRODUCT('Воздушные линии'!C6:C40,'Воздушные линии'!D6:D40)","v":0},"(в ценах 2001 года)"]
[null,"Коэффициент перевода для ВЛ"]
[null,"Плата за строительство кабельных линий (КЛ), руб.",{"$f":"SUMPRODUCT('Кабельные линии'!C6:C169,'Кабельные линии'!D6:D169)","v":0},"(в ценах 2001 года)"]
[null,"Коэффициент перевода для КЛ"]
[null,"Плата за строительство подстанций (ТП), руб.",{"$f":"SUMPRODUCT('Трансформаторные подстанции'!C5:C144,'Трансформаторные подстанции'!E5:E144)*C10","v":0},"(в ценах 2001 года)"]
[null,"Коэффициент перевода для ПС",{"$f":"KoefTP","v":6.34}]
[]
[null,"Плата по стандартизированным тарифным ставкам с учетом коэффициента перевода, руб. (без НДС, без налога на прибыль)",{"$f":"C31+C32*C33+C34*C35+C36*C37","v":0}]
[]
[null,"Плата по ставкам за единицу максимальной мощности"]
[]
[null,"П1 = (С1×N) + (Свл×N) + (Cкл×N) + (Cтп×N4)"]
[null,"( \"чернила\" + ВЛ + КЛ + ТП )"]
[]
[null,"С1, руб./кВт",{"$f":"Расчет1!C25","v":false},{"$f":"IF(C46=0,\"(для данной сетевой организации стандартизированная тарифная ставка С1 не утверждена)\",\"\")","v":""}]
[null,"Свл (0,4 кВ), руб./кВт",{"$f":"IF(IFERROR(SEARCH(\"временная схема\",C6,1),1)=1,IF(AND(C10>=0,C10<=15),VLOOKUP(C4,OrgUtv!$B$2:$BY$77,3,FALSE),IF(AND(C10>15,C10<=150),VLOOKUP(C4,OrgUtv!$B$2:$BY$77,6,FALSE),IF(AND(C10>150,C10<=670),VLOOKUP(C4,OrgUtv!$B$2:$BY$77,9,FALSE),IF(C10>670,VLOOKUP(C4,OrgUtv!$B$2:$BY$77,12,FALSE),0)))),0)","v":{"$error":"#N/A"}},{"$f":"IF(C47=0,\"(для данной сетевой организации стандартизированная тарифная ставка Свл не утверждена)\",\"\")","v":{"$error":"#N/A"}}]
[null,"Свл (6 - 10 кВ), руб./кВт",{"$f":"IF(IFERROR(SEARCH(\"временная схема\",C6,1),1)=1,IF(AND(C10>=0,C10<=15),VLOOKUP(C4,OrgUtv!$B$2:$BY$77,15,FALSE),IF(AND(C10>15,C10<=150),VLOOKUP(C4,OrgUtv!$B$2:$BY$77,18,FALSE),IF(AND(C10>150,C10<=670),VLOOKUP(C4,OrgUtv!$B$2:$BY$77,21,FALSE),IF(AND(C10>670,C10<=8900),VLOOKUP(C4,OrgUtv!$B$2:$BY$77,24,FALSE),IF(C10>8900,VLOOKUP(C4,OrgUtv!$B$2:$BY$77,27,FALSE),0))))),0)","v":{"$error":"#N/A"}},{"$f":"IF(C48=0,\"(для данной сетевой организации стандартизированная тарифная ставка Свл не утверждена)\",\"\")","v":{"$error":"#N/A"}}]
[null,"Свл (20 кВ), руб./кВт",0,"(для данной сетевой организации стандартизированная тарифная ставка Свл не утверждена)"]
[null,"Свл (27,5 кВ), руб./кВт",0,"(для данной сетевой организации стандартизированная тарифная ставка Свл не утверждена)"]
[null,"Свл (35 кВ), руб./кВт",0,{"$f":"IF(C51=0,\"(для данной сетевой организации стандартизированная тарифная ставка Свл не утверждена)\",\"\")","v":"(для данной сетевой организации стандартизированная тарифная ставка Свл не утверждена)"}]
[null,"Свл (110 кВ), руб./кВт",0,"(для данной сетевой организации стандартизированная тарифная ставка Свл не утверждена)"]
[null,"Скл (0,4 кВ), руб./кВт",{"$f":"IF(IFERROR(SEARCH(\"временная схема\",C6,1),1)=1,IF(AND(C10>=0,C10<=15),VLOOKUP(C4,OrgUtv!$B$2:$BY$77,4,FALSE),IF(AND(C10>15,C10<=150),VLOOKUP(C4,OrgUtv!$B$2:$BY$77,7,FALSE),IF(AND(C10>150,C10<=670),VLOOKUP(C4,OrgUtv!$B$2:$BY$77,10,FALSE),IF(C10>670,VLOOKUP(C4,OrgUtv!$B$2:$BY$77,13,FALSE),0)))),0)","v":{"$error":"#N/A"}},{"$f":"IF(C53=0,\"(для данной сетевой организации стандартизированная тарифная ставка Скл не утверждена)\",\"\")","v":{"$error":"#N/A"}}]
[null,"Скл (6 - 10 кВ), руб./кВт",{"$f":"IF(IFERROR(SEARCH(\"временная схема\",C6,1),1)=1,IF(AND(C10>=0,C10<=15),VLOOKUP(C4,OrgUtv!$B$2:$BY$77,16,FALSE),IF(AND(C10>15,C10<=150),VLOOKUP(C4,OrgUtv!$B$2:$BY$77,19,FALSE),IF(AND(C10>150,C10<=670),VLOOKUP(C4,OrgUtv!$B$2:$BY$77,22,FALSE),IF(AND(C10>670,C10<=8900),VLOOKUP(C4,OrgUtv!$B$2:$BY$77,25,FALSE),IF(C10>8900,VLOOKUP(C4,OrgUtv!$B$2:$BY$77,28,FALSE),0))))),0)","v":{"$error":"#N/A"}},{"$f":"IF(C54=0,\"(для данной сетевой организации стандартизированная тарифная ставка Скл не утверждена)\",\"\")","v":{"$error":"#N/A"}}]
[null,"Скл (20 кВ), руб./кВт",0,"(для данной сетевой организации стандартизированная тарифная ставка Скл не утверждена)"]
[null,"Скл (27,5 кВ), руб./кВт",0,"(для данной сетевой организации стандартизированная тарифная ставка Скл не утверждена)"]
[null,"Скл (35 кВ), руб./кВт",0,{"$f":"IF(C57=0,\"(для данной сетевой организации стандартизированная тарифная ставка Скл не утверждена)\",\"\")","v":"(для данной сетевой организации стандартизированная тарифная ставка Скл не утверждена)"}]
[null,"Скл (110 кВ), руб./кВт",0,"(для данной сетевой организации стандартизированная тарифная ставка Скл не утверждена)"]
[null,"N = N4, кВт",{"$f":"Калькулятор!C10","v":0}]
[]
[null,"Плата за организационные мероприятия (\"чернила\"), руб.",{"$f":"C46*C59","v":0},"(в текущем уровне цен)"]
[null,"Плата за строительство воздушных линий (ВЛ), руб.",{"$f":"IF(C13=\"Да\",(IF(SUM('Воздушные линии'!D6:D11,'Воздушные линии'!D13:D20)<>0,C47*C59,0)+IF(SUM('Воздушные линии'!D23:D26,'Воздушные линии'!D28:D35)<>0,C48*C59,0)+IF('Воздушные линии'!D36<>0,C49*C59,0)),0)","v":0},"(в текущем уровне цен)"]
[null,"Плата за строительство кабельных линий (КЛ), руб.",{"$f":"IF(C14=\"Да\",(IF(SUM('Кабельные линии'!D6:D16,'Кабельные линии'!D18:D24,'Кабельные линии'!D26:D33,'Кабельные линии'!D35:D39,'Кабельные линии'!D41:D49,'Кабельные линии'!D51:D52,'Кабельные линии'!D54:D60,'Кабельные линии'!D62:D63)<>0,C53*C59,0)+IF(SUM('Кабельные линии'!D66:D75,'Кабельные линии'!D77:D84,'Кабельные линии'!D86:D87,'Кабельные линии'!D89:D90,'Кабельные линии'!D92:D100,'Кабельные линии'!D102:D108,'Кабельные линии'!D110:D113,'Кабельные линии'!D115:D118,'Кабельные линии'!D120:D126,'Кабельные линии'!D128:D134,'Кабельные линии'!D136:D141)<>0,C54*C59,0)+IF(SUM('Кабельные линии'!D144:D149,'Кабельные линии'!D151:D156,'Кабельные линии'!D158:D163)<>0,C55*C59,0)),0)","v":0},"(в текущем уровне цен)"]
[null,"Плата за строительство подстанций (ТП), руб.",{"$f":"IF(C15=\"Да\",SUMPRODUCT('Трансформаторные подстанции'!C5:C144,'Трансформаторные подстанции'!E5:E144)*C59,0)","v":0},"(в ценах 2001 года)"]
[null,"Коэффициент перевода для ПС",{"$f":"KoefTP","v":6.34}]
[]
[null,"Плата по ставкам за единицу максимальной мощности с учетом коэффициента перевода, руб. (без НДС, без налога на прибыль)",{"$f":"C61+C62+C63+C64*C65","v":0}]
[]
[]
[]
[]
[null,"Внимание! Данные расчеты носят справочный характер и не могут являться окончательными для оплаты стоимости технологического присоединения. \nКалькулятор расчета платы за технологическое присоединение к электрическим сетям предназначен для примерного расчета стоимости размера платы за технологическое присоединение к электрическим сетям территориальных сетевых организаций Свердловской области."]

{"sheet":"OrgUtv","index":6,"n_rows":85,"n_cols":116,"rows_kept":85,"cut":false,"hidden":true,"merged":[[80,2,80,13],[81,2,81,4],[80,29,80,37],[80,38,80,49],[81,56,81,58],[81,41,81,43],[81,44,81,46],[81,47,81,49],[81,50,81,52],[81,53,81,55],[81,32,81,34],[81,35,81,37],[81,38,81,40],[80,14,80,28],[81,29,81,31],[81,26,81,28],[81,20,81,22],[81,14,81,16],[81,17,81,19],[81,23,81,25],[81,5,81,7],[81,8,81,10],[81,11,81,13],[83,24,83,26],[83,51,83,53],[83,54,83,56],[83,71,83,73],[80,71,80,76],[81,68,81,70],[80,50,80,55],[80,56,80,61],[81,59,81,61],[81,65,81,67],[81,74,81,76],[81,71,81,73],[81,62,81,64],[80,62,80,70]]}
["№","Наименование организации","С11","СВЛ1","СКЛ1","С12","СВЛ2","СКЛ2","С13","СВЛ3","СКЛ3","С14","СВЛ4","СКЛ4","С15","СВЛ5","СКЛ5","С16","СВЛ6","СКЛ6","С17","СВЛ7","СКЛ7","С18","СВЛ8","СКЛ8","С19","СВЛ9","СКЛ9","С110","СВЛ10","СКЛ10","С111","СВЛ11","СКЛ11","С112","СВЛ12","СКЛ12","С113","СВЛ13","СКЛ13","С114","СВЛ14","СКЛ14","С115","СВЛ15","СКЛ15","С116","СВЛ16","СКЛ16","С117","СВЛ17","СКЛ17","С118","СВЛ18","СКЛ18","С119","СВЛ19","СКЛ19","С120","СВЛ20","СКЛ20","С121","СВЛ21","СКЛ21","С122","СВЛ22","СКЛ22","С123","СВЛ23","СКЛ23","С124","СВЛ24","СКЛ24","С125","СВЛ25","СКЛ25","НПА",null,null,null,null,null,null,null,null,null,null,null,null,null,null,null,null,null,null,null,null,null,null,null,null,null,null,null,null,null,null,null,null,null,null,null,null,null,"0,4 кВ"]
[1,"Акционерное общество \"Горэлектросеть\", г. Первоуральск",1038,7195,8429,207,7195,8429,207,7195,8429,207,7195,8429,1038,0,8375,207,0,8375,207,0,8375,207,0,8375,207,0,8375,0,0,0,0,0,0,0,0,0,0,0,0,0,0,0,0,0,0,0,0,0,0,0,0,0,0,0,0,0,0,0,0,0,0,0,0,0,0,0,0,0,0,0,0,0,0,0,0,"№ 199-ПК от 21.12.2016 г.",null,null,null,null,null,null,null,null,null,null,null,null,null,null,null,null,null,null,null,null,null,null,null,null,null,null,null,null,null,null,null,null,null,null,null,null,null,"6 - 10 кВ"]
[2,"Акционерное общество \"Екатеринбургская электросетевая компания\", г. Екатеринбург",5860,10500,9396,224,10500,9396,224,10500,9396,224,10500,9396,2219,9411,14074,159,9411,14074,159,9411,14074,159,9411,14074,159,9411,14074,5860,0,0,224,0,0,224,0,0,2219,0,0,159,0,0,159,0,0,159,0,0,2219,0,0,159,0,0,2219,0,0,159,0,0,0,0,0,258,0,0,258,0,0,0,0,0,0,0,0,"№ 196-ПК от 21.12.2016 г.",null,null,null,null,null,null,null,null,null,null,null,null,null,null,null,null,null,null,null,null,null,null,null,null,null,null,null,null,null,null,null,null,null,null,null,null,null,"20 кВ"]
[3,"Акционерное общество \"Калиновский химический завод\", п. Калиново",0,0,0,0,0,0,0,0,0,0,0,0,0,0,0,0,0,0,0,0,0,0,0,0,0,0,0,0,0,0,0,0,0,0,0,0,0,0,0,0,0,0,0,0,0,0,0,0,0,0,0,0,0,0,0,0,0,0,0,0,0,0,0,0,0,0,0,0,0,0,0,0,0,0,0,0,null,null,null,null,null,null,null,null,null,null,null,null,null,null,null,null,null,null,null,null,null,null,null,null,null,null,null,null,null,null,null,null,null,null,null,null,null,"35 кВ"]
[4,"Акционерное общество \"Кировградский завод твёрдых сплавов\", г. Кировград",0,0,0,0,0,0,0,0,0,0,0,0,0,0,0,0,0,0,0,0,0,0,0,0,0,0,0,0,0,0,0,0,0,0,0,0,0,0,0,0,0,0,0,0,0,0,0,0,0,0,0,0,0,0,0,0,0,0,0,0,0,0,0,0,0,0,0,0,0,0,0,0,0,0,0,0,null,null,null,null,null,null,null,null,null,null,null,null,null,null,null,null,null,null,null,null,null,null,null,null,null,null,null,null,null,null,null,null,null,null,null,null,null,"110 кВ"]
[5,"Акционерное общество \"Малышевское рудоуправление\", п. Малышева",0,0,0,0,0,0,0,0,0,0,0,0,0,0,0,0,0,0,0,0,0,0,0,0,0,0,0,0,0,0,0,0,0,0,0,0,0,0,0,0,0,0,0,0,0,0,0,0,0,0,0,0,0,0,0,0,0,0,0,0,0,0,0,0,0,0,0,0,0,0,0,0,0,0,0,0,null,null,null,null,null,null,null,null,null,null,null,null,null,null,null,null,null,null,null,null,null,null,null,null,null,null,null,null,null,null,null,null,null,null,null,null,null,"0,4 кВ временная схема"]
[6,"Акционерное общество \"Нижне-Исетский завод металлоконструкций\", г. Екатеринбург",0,0,0,0,0,0,0,0,0,0,0,0,0,0,0,0,0,0,0,0,0,0,0,0,0,0,0,0,0,0,0,0,0,0,0,0,0,0,0,0,0,0,0,0,0,0,0,0,0,0,0,0,0,0,0,0,0,0,0,0,0,0,0,0,0,0,0,0,0,0,0,0,0,0,0,0,null,null,null,null,null,null,null,null,null,null,null,null,null,null,null,null,null,null,null,null,null,null,null,null,null,null,null,null,null,null,null,null,null,null,null,null,null,"6 - 10 кВ временная схема"]
[7,"Акционерное общество \"НЛМК-Урал\", г. Ревда",0,0,0,0,0,0,0,0,0,0,0,0,0,0,0,5,0,0,5,0,0,5,0,0,5,0,0,0,0,0,0,0,0,0,0,0,0,0,0,0,0,0,0,0,0,0,0,0,0,0,0,0,0,0,0,0,0,0,0,0,0,0,0,0,0,0,0,0,0,0,0,0,0,0,0,"№ 219-ПК от 21.12.2016 г.",null,null,null,null,null,null,null,null,null,null,null,null,null,null,null,null,null,null,null,null,null,null,null,null,null,null,null,null,null,null,null,null,null,null,null,null,null,"20 кВ временная схема"]
[8,"Акционерное общество \"Облкоммунэнерго\", г. Екатеринбург",2920,4542,2716,749,4542,2716,166,4542,2716,166,4542,2716,4580,5282,3717,538,5282,3717,102,5282,3717,102,5282,3717,102,5282,3717,2920,0,0,749,0,0,166,0,0,4580,0,0,538,0,0,102,0,0,102,null,null,0,0,0,0,0,0,0,0,0,0,0,0,0,0,0,0,0,0,0,0,0,0,0,0,0,0,0,"№ 195-ПК от 21.12.2016 г."]
[9,"Акционерное общество \"Оборонэнерго\" филиал \"Уральский\" г. Екатеринбург",393,0,0,393,0,0,64,0,0,64,0,0,393,0,0,393,0,0,64,0,0,64,0,0,64,0,0,393,0,0,393,0,0,64,0,0,393,0,0,393,0,0,64,0,0,64,0,0,0,0,0,0,0,0,0,0,0,0,0,0,0,0,0,0,0,0,0,0,0,0,0,0,0,0,0,"№ 203-ПК от 21.12.2016 г."]
[10,"Акционерное общество \"Региональная сетевая компания\", г. Екатеринбург",1991,4842,7964,211,4842,7964,211,4842,7964,211,4842,7964,1991,9533,2804,211,9533,2804,211,9533,2804,211,9533,2804,211,9533,2804,0,0,0,0,0,0,0,0,0,0,0,0,0,0,0,0,0,0,0,0,0,0,0,0,0,0,0,0,0,0,0,0,0,0,0,0,0,0,0,0,0,0,0,0,0,0,0,0,"№ 201-ПК от 21.12.2016 г.",null,null,null,null,null,null,null,null,null,null,null,null,null,null,null,null,null,null,null,null,null,null,null,null,null,null,null,null,null,null,null,null,null,null,null,null,null,"Да"]
[11,"Акционерное общество \"Сибирско-Уральская алюминиевая компания\" филиал \"Богословский алюминиевый завод Сибирско-Уральской алюминиевой компании\", г. Краснотурьинск",0,0,0,0,0,0,0,0,0,0,0,0,0,0,0,0,0,0,0,0,0,0,0,0,0,0,0,0,0,0,0,0,0,0,0,0,0,0,0,0,0,0,0,0,0,0,0,0,0,0,0,0,0,0,0,0,0,0,0,0,0,0,0,0,0,0,0,0,0,0,0,0,0,0,0,0,null,null,null,null,null,null,null,null,null,null,null,null,null,null,null,null,null,null,null,null,null,null,null,null,null,null,null,null,null,null,null,null,null,null,null,null,null,"Нет"]
[12,"Акционерное общество \"Сибирско-Уральская алюминиевая компания\" филиал \"Уральский алюминиевый завод Сибирско-Уральской Алюминиевой компании\", г. Каменск-Уральский",0,0,0,0,0,0,0,0,0,0,0,0,0,0,0,0,0,0,0,0,0,0,0,0,0,0,0,0,0,0,0,0,0,0,0,0,0,0,0,0,0,0,0,0,0,0,0,0,0,0,0,0,0,0,0,0,0,0,0,0,0,0,0,0,0,0,0,0,0,0,0,0,0,0,0,0]
[13,"Акционерное общество \"Уральские электрические сети\", г. Березовский",3146,9921,3235,419,9921,3235,419,9921,3235,419,9921,3235,3146,9921,3235,419,9921,3235,419,9921,3235,419,9921,3235,419,9921,3235,0,0,0,0,0,0,0,0,0,0,0,0,0,0,0,0,0,0,0,0,0,0,0,0,0,0,0,0,0,0,0,0,0,0,0,0,0,0,0,0,0,0,0,0,0,0,0,0,"№ 202-ПК от 21.12.2016 г.",null,null,null,null,null,null,null,null,null,null,null,null,null,null,null,null,null,null,null,null,null,null,null,null,null,null,null,null,null,null,null,null,null,null,null,null,null,"+"]
[14,"Акционерное общество \"Уральский завод химического машиностроения\", г. Екатеринбург",0,0,0,0,0,0,0,0,0,0,0,0,0,0,0,0,0,0,0,0,0,0,0,0,0,0,0,0,0,0,0,0,0,0,0,0,0,0,0,0,0,0,0,0,0,0,0,0,0,0,0,0,0,0,0,0,0,0,0,0,0,0,0,0,0,0,0,0,0,0,0,0,0,0,0,0]
[15,"Акционерное общество \"Уральский электрохимический комбинат\", г. Новоуральск",0,0,0,0,0,0,0,0,0,0,0,0,0,0,0,0,0,0,0,0,0,0,0,0,0,0,0,0,0,0,0,0,0,0,0,0,0,0,0,0,0,0,0,0,0,0,0,0,0,0,0,0,0,0,0,0,0,0,0,0,0,0,0,0,0,0,0,0,0,0,0,0,0,0,0,0,null,null,null,null,null,null,null,null,null,null,null,null,null,null,null,null,null,null,null,null,null,null,null,null,null,null,null,null,null,null,null,null,null,null,null,null,null,3.83]
[16,"Акционерное общество \"Уральское производственное предприятие \"Вектор\", г. Екатеринбург",0,0,0,0,0,0,0,0,0,0,0,0,0,0,0,0,0,0,0,0,0,0,0,0,0,0,0,0,0,0,0,0,0,0,0,0,0,0,0,0,0,0,0,0,0,0,0,0,0,0,0,0,0,0,0,0,0,0,0,0,0,0,0,0,0,0,0,0,0,0,0,0,0,0,0,0,null,null,null,null,null,null,null,null,null,null,null,null,null,null,null,null,null,null,null,null,null,null,null,null,null,null,null,null,null,null,null,null,null,null,null,null,null,4.3]
[17,"Акционерное общество \"Уралэлектромедь\", г. Верхняя Пышма",0,0,0,187,0,0,187,0,0,187,0,0,0,0,0,0,0,0,0,0,0,0,0,0,0,0,0,0,0,0,0,0,0,0,0,0,0,0,0,0,0,0,0,0,0,0,0,0,0,0,0,0,0,0,0,0,0,0,0,0,0,0,0,0,0,0,0,0,0,0,0,0,0,0,0,"№ 212-ПК от 21.12.2016 г."]
[18,"Акционерное общество \"ЭлектроСетевая Компания\", г. Екатеринбург",0,0,0,79,0,4130,79,0,4130,79,0,4130,0,0,0,79,0,3997,79,0,3997,79,0,3997,79,0,3997,0,0,0,0,0,0,0,0,0,0,0,0,0,0,0,0,0,0,0,0,0,0,0,0,0,0,0,0,0,0,0,0,0,0,0,0,0,0,0,0,0,0,0,0,0,0,0,0,"№ 204-ПК от 21.12.2016 г.",null,null,null,null,null,null,null,null,null,null,null,null,null,null,null,null,null,null,null,null,null,null,null,null,null,null,null,null,null,null,null,null,null,null,null,null,null,6.33]
[19,"Акционерное общество \"Энергосетевая компания ЧТПЗ\" филиал в г. Первоуральск",0,0,0,0,0,0,0,0,0,0,0,0,0,0,0,0,0,0,0,0,0,0,0,0,0,0,0,0,0,0,0,0,0,0,0,0,0,0,0,0,0,0,0,0,0,0,0,0,0,0,0,0,0,0,0,0,0,0,0,0,0,0,0,0,0,0,0,0,0,0,0,0,0,0,0,0,null,null,null,null,null,null,null,null,null,null,null,null,null,null,null,null,null,null,null,null,null,null,null,null,null,null,null,null,null,null,null,null,null,null,null,null,null,6.05]
[20,"Богдановичское открытое акционерное общество по производству огнеупорных материалов, г.Богданович",0,0,0,0,0,0,0,0,0,0,0,0,0,0,0,0,0,0,0,0,0,0,0,0,0,0,0,0,0,0,0,0,0,0,0,0,0,0,0,0,0,0,0,0,0,0,0,0,0,0,0,0,0,0,0,0,0,0,0,0,0,0,0,0,0,0,0,0,0,0,0,0,0,0,0,0]
[21,"Екатеринбургское муниципальное унитарное предприятие \"Муниципальные электрические сети\", г. Екатеринбург",0,0,0,0,0,0,0,0,0,0,0,0,0,0,0,0,0,0,0,0,0,0,0,0,0,0,0,0,0,0,0,0,0,0,0,0,0,0,0,0,0,0,0,0,0,0,0,0,0,0,0,0,0,0,0,0,0,0,0,0,0,0,0,0,0,0,0,0,0,0,0,0,0,0,0,0,null,null,null,null,null,null,null,null,null,null,null,null,null,null,null,null,null,null,null,null,null,null,null,null,null,null,null,null,null,null,null,null,null,null,null,null,null,6.34]
[22,"Закрытое акционерное общество \"Алапаевская электросетевая компания\", г. Алапаевск",0,0,0,553,5475,0,553,5475,0,553,5475,0,0,0,0,553,0,3346,553,0,3346,553,0,3346,553,0,3346,0,0,0,553,0,0,553,0,0,0,0,0,553,0,0,553,0,0,553,0,3346,0,0,0,0,0,0,0,0,0,0,0,0,0,0,0,0,0,0,0,0,0,0,0,0,0,0,0,"№ 206-ПК от 21.12.2016 г."]
[23,"Закрытое акционерное общество \"Тагилэнергосети\", г. Нижний Тагил",0,0,0,0,0,0,0,0,0,0,0,0,0,0,0,0,0,0,0,0,0,0,0,0,0,0,0,0,0,0,0,0,0,0,0,0,0,0,0,0,0,0,0,0,0,0,0,0,0,0,0,0,0,0,0,0,0,0,0,0,0,0,0,0,0,0,0,0,0,0,0,0,0,0,0,0]
[24,"Закрытое акционерное общество \"Уральский турбинный завод\", г. Екатеринбург",0,0,0,0,0,0,0,0,0,0,0,0,0,0,0,0,0,0,0,0,0,0,0,0,0,0,0,0,0,0,0,0,0,0,0,0,0,0,0,0,0,0,0,0,0,0,0,0,0,0,0,0,0,0,0,0,0,0,0,0,0,0,0,0,0,0,0,0,0,0,0,0,0,0,0,0]
[25,"Муниципальное предприятие \"Городские электрические сети\" Верхнесалдинского городского округа, г. Верхняя Салда",0,0,0,155,2254,2305,30,2254,2305,30,2254,2305,0,0,0,155,2254,2305,30,2254,2305,30,2254,2305,30,2254,2305,0,0,0,0,0,0,0,0,0,0,0,0,0,0,0,0,0,0,0,0,0,0,0,0,0,0,0,0,0,0,0,0,0,0,0,0,0,0,0,0,0,0,0,0,0,0,0,0,"№ 200-ПК от 21.12.2016 г."]
[26,"Муниципальное унитарное предприятие \"Городские электрические сети\" Новоуральского городского округа, г. Новоуральск",1596,11337,30733,305,11337,30733,32,11337,30733,32,11337,30733,1596,0,20361,305,0,20361,32,0,20361,32,0,20361,32,0,20361,1596,0,0,305,0,0,32,0,0,1596,0,0,305,0,0,32,0,0,32,0,0,0,0,0,0,0,0,0,0,0,0,0,0,0,0,0,0,0,0,0,0,0,0,0,0,0,0,0,"№ 198-ПК от 21.12.2016 г."]
[27,"Муниципальное унитарное предприятие \"Производственный трест жилищно-коммунального хозяйства\" городского округа Рефтинский, п. Рефтинский",0,0,0,0,0,0,0,0,0,0,0,0,0,0,0,0,0,0,0,0,0,0,0,0,0,0,0,0,0,0,0,0,0,0,0,0,0,0,0,0,0,0,0,0,0,0,0,0,0,0,0,0,0,0,0,0,0,0,0,0,0,0,0,0,0,0,0,0,0,0,0,0,0,0,0,0]
[28,"Муниципальное унитарное предприятие жилищно-коммунального хозяйства \"Кедр\", п. Свободный",0,0,0,0,0,0,0,0,0,0,0,0,0,0,0,0,0,0,0,0,0,0,0,0,0,0,0,0,0,0,0,0,0,0,0,0,0,0,0,0,0,0,0,0,0,0,0,0,0,0,0,0,0,0,0,0,0,0,0,0,0,0,0,0,0,0,0,0,0,0,0,0,0,0,0,0]
[29,"Муниципальное унитарное предприятие Качканарского городского округа \"Городские энергосистемы\", г. Качканар",403,0,0,448,0,0,448,0,0,448,0,0,403,0,0,448,0,0,448,0,0,448,0,0,448,0,0,0,0,0,0,0,0,0,0,0,0,0,0,0,0,0,0,0,0,0,0,0,0,0,0,0,0,0,0,0,0,0,0,0,0,0,0,0,0,0,0,0,0,0,0,0,0,0,0,"№ 211-ПК от 21.12.2016 г."]
[30,"Общество с ограниченной ответственностью \"Ветта-Инвест\", г.Екатеринбург",0,0,0,0,0,0,0,0,0,0,0,0,0,0,0,0,0,0,0,0,0,0,0,0,0,0,0,0,0,0,0,0,0,0,0,0,0,0,0,0,0,0,0,0,0,0,0,0,0,0,0,0,0,0,0,0,0,0,0,0,0,0,0,0,0,0,0,0,0,0,0,0,0,0,0,0]
[31,"Общество с ограниченной ответственностью \"Газпром энерго\", г. Москва",0,0,0,127,0,0,127,0,0,127,0,0,0,0,0,127,0,0,127,0,0,127,0,0,127,0,0,0,0,0,0,0,0,0,0,0,0,0,0,0,0,0,0,0,0,0,0,0,0,0,0,0,0,0,0,0,0,0,0,0,0,0,0,0,0,0,0,0,0,0,0,0,0,0,0,"№ 207-ПК от 21.12.2016 г."]
[32,"Общество с ограниченной ответственностью \"Горэнерго\", г.Тавда",0,0,0,0,0,0,0,0,0,0,0,0,0,0,0,0,0,0,0,0,0,0,0,0,0,0,0,0,0,0,0,0,0,0,0,0,0,0,0,0,0,0,0,0,0,0,0,0,0,0,0,0,0,0,0,0,0,0,0,0,0,0,0,0,0,0,0,0,0,0,0,0,0,0,0,0]
[33,"Общество с ограниченной ответственностью \"ДАР\", г. Тавда",0,0,0,0,0,0,0,0,0,0,0,0,0,0,0,0,0,0,0,0,0,0,0,0,0,0,0,0,0,0,0,0,0,0,0,0,0,0,0,0,0,0,0,0,0,0,0,0,0,0,0,0,0,0,0,0,0,0,0,0,0,0,0,0,0,0,0,0,0,0,0,0,0,0,0,0]
[34,"Общество с ограниченной ответственностью \"ЕвразЭнергоТранс\", г. Новокузнецк",107,0,0,107,0,0,21,0,0,21,0,0,107,0,0,107,0,0,21,0,0,21,0,0,21,0,0,0,0,0,0,0,0,0,0,0,0,0,0,0,0,0,0,0,0,0,0,0,0,0,0,0,0,0,0,0,0,0,0,0,0,0,0,0,0,0,0,0,0,0,0,0,0,0,0,"№ 214-ПК от 21.12.2016 г."]
[35,"Общество с ограниченной ответственностью \"ЕЗ ОЦМ-Энерго\", г. Верхняя Пышма",0,0,0,0,0,0,0,0,0,0,0,0,0,0,0,0,0,0,0,0,0,0,0,0,0,0,0,0,0,0,0,0,0,0,0,0,0,0,0,0,0,0,0,0,0,0,0,0,0,0,0,0,0,0,0,0,0,0,0,0,0,0,0,0,0,0,0,0,0,0,0,0,0,0,0,0]
[36,"Общество с ограниченной ответственностью \"Инвест\", г. Екатеринбург",0,0,0,0,0,0,0,0,0,0,0,0,0,0,0,0,0,0,0,0,0,0,0,0,0,0,0,0,0,0,0,0,0,0,0,0,0,0,0,0,0,0,0,0,0,0,0,0,0,0,0,0,0,0,0,0,0,0,0,0,0,0,0,0,0,0,0,0,0,0,0,0,0,0,0,0]
[37,"Общество с ограниченной ответственностью \"Инвестиционная корпорация \"Капитал\", г. Екатеринбург",0,0,0,0,0,0,0,0,0,0,0,0,0,0,0,0,0,0,0,0,0,0,0,0,0,0,0,0,0,0,0,0,0,0,0,0,0,0,0,0,0,0,0,0,0,0,0,0,0,0,0,0,0,0,0,0,0,0,0,0,0,0,0,0,0,0,0,0,0,0,0,0,0,0,0,0]
[38,"Общество с ограниченной ответственностью \"Инвестэнерго\" г. Екатеринбург",0,0,0,434,0,0,434,0,0,434,0,0,0,0,0,66,0,0,66,0,0,66,0,0,66,0,0,0,0,0,434,0,0,434,0,0,0,0,0,0,0,0,0,0,0,0,0,0,0,0,0,0,0,0,0,0,0,0,0,0,0,0,0,0,0,0,0,0,0,0,0,0,0,0,0,"№ 215-ПК от 21.12.2016 г."]
[39,"Общество с ограниченной ответственностью \"Концерн \"Уральский текстиль\", г. Екатеринбург",0,0,0,0,0,0,0,0,0,0,0,0,0,0,0,0,0,0,0,0,0,0,0,0,0,0,0,0,0,0,0,0,0,0,0,0,0,0,0,0,0,0,0,0,0,0,0,0,0,0,0,0,0,0,0,0,0,0,0,0,0,0,0,0,0,0,0,0,0,0,0,0,0,0,0,0]
[40,"Общество с ограниченной ответственностью \"НикомЭнергоТранс\", г. Нижний Тагил",0,0,0,0,0,0,0,0,0,0,0,0,0,0,0,0,0,0,0,0,0,0,0,0,0,0,0,0,0,0,0,0,0,0,0,0,0,0,0,0,0,0,0,0,0,0,0,0,0,0,0,0,0,0,0,0,0,0,0,0,0,0,0,0,0,0,0,0,0,0,0,0,0,0,0,0]
[41,"Общество с ограниченной ответственностью \"НЛМК-Метиз\", г. Березовский",0,0,0,0,0,0,0,0,0,0,0,0,0,0,0,0,0,0,0,0,0,0,0,0,0,0,0,0,0,0,0,0,0,0,0,0,0,0,0,0,0,0,0,0,0,0,0,0,0,0,0,0,0,0,0,0,0,0,0,0,0,0,0,0,0,0,0,0,0,0,0,0,0,0,0,0]
[42,"Общество с ограниченной ответственностью \"Объединенная Компания РУСАЛ Энергосеть\", г. Каменск-Уральский",0,0,0,0,0,0,0,0,0,0,0,0,0,0,0,0,0,0,0,0,0,0,0,0,0,0,0,0,0,0,0,0,0,0,0,0,0,0,0,0,0,0,0,0,0,0,0,0,0,0,0,0,0,0,0,0,0,0,0,0,0,0,0,0,0,0,0,0,0,0,0,0,0,0,0,0]
[43,"Общество с ограниченной ответственностью \"Прогресс-Плюс\", г. Екатеринбург",0,0,0,0,0,0,0,0,0,0,0,0,0,0,0,0,0,0,0,0,0,0,0,0,0,0,0,0,0,0,0,0,0,0,0,0,0,0,0,0,0,0,0,0,0,0,0,0,0,0,0,0,0,0,0,0,0,0,0,0,0,0,0,0,0,0,0,0,0,0,0,0,0,0,0,0]
[44,"Общество с ограниченной ответственностью \"Проминвест\", г. Екатеринбург",0,0,0,0,0,0,0,0,0,0,0,0,0,0,0,0,0,0,0,0,0,0,0,0,0,0,0,0,0,0,0,0,0,0,0,0,0,0,0,0,0,0,0,0,0,0,0,0,0,0,0,0,0,0,0,0,0,0,0,0,0,0,0,0,0,0,0,0,0,0,0,0,0,0,0,0]
[45,"Общество с ограниченной ответственностью \"Промтрансэнерго\", г. Нижний Тагил",0,0,0,0,0,0,0,0,0,0,0,0,0,0,0,0,0,0,0,0,0,0,0,0,0,0,0,0,0,0,0,0,0,0,0,0,0,0,0,0,0,0,0,0,0,0,0,0,0,0,0,0,0,0,0,0,0,0,0,0,0,0,0,0,0,0,0,0,0,0,0,0,0,0,0,0]
[46,"Общество с ограниченной ответственностью \"ПСК \"Урал\", г. Екатеринбург",0,0,0,0,0,0,0,0,0,0,0,0,0,0,0,0,0,0,0,0,0,0,0,0,0,0,0,0,0,0,0,0,0,0,0,0,0,0,0,0,0,0,0,0,0,0,0,0,0,0,0,0,0,0,0,0,0,0,0,0,0,0,0,0,0,0,0,0,0,0,0,0,0,0,0,0]
[47,"Общество с ограниченной ответственностью \"ТЭЦ\", г. Екатеринбург",0,0,0,0,0,0,0,0,0,0,0,0,0,0,0,0,0,0,0,0,0,0,0,0,0,0,0,0,0,0,0,0,0,0,0,0,0,0,0,0,0,0,0,0,0,0,0,0,0,0,0,0,0,0,0,0,0,0,0,0,0,0,0,0,0,0,0,0,0,0,0,0,0,0,0,0]
[48,"Общество с ограниченной ответственностью \"Управляющая компания \"Новая территория\", г. Екатеринбург",0,0,0,0,0,0,0,0,0,0,0,0,0,0,0,0,0,0,0,0,0,0,0,0,0,0,0,0,0,0,0,0,0,0,0,0,0,0,0,0,0,0,0,0,0,0,0,0,0,0,0,0,0,0,0,0,0,0,0,0,0,0,0,0,0,0,0,0,0,0,0,0,0,0,0,0]
[49,"Общество с ограниченной ответственностью \"Уралэлектромедь-Энерго\" г. Верхняя Пышма",0,0,0,58,0,0,58,0,0,58,0,0,0,0,0,58,0,0,58,0,0,58,0,0,58,0,0,0,0,0,0,0,0,0,0,0,0,0,0,0,0,0,0,0,0,0,0,0,0,0,0,0,0,0,0,0,0,0,0,0,0,0,0,0,0,0,0,0,0,0,0,0,0,0,0,"№ 216-ПК от 21.12.2016 г."]
[50,"Общество с ограниченной ответственностью \"Уралэнерго\" г. Екатеринбург",0,0,0,209,0,0,209,0,0,209,0,0,0,0,0,209,0,0,209,0,0,209,0,0,209,0,0,0,0,0,0,0,0,0,0,0,0,0,0,0,0,0,0,0,0,0,0,0,0,0,0,0,0,0,0,0,0,0,0,0,0,0,0,0,0,0,0,0,0,0,0,0,0,0,0,"№ 217-ПК от 21.12.2016 г."]
[51,"Общество с ограниченной ответственностью \"Форманта-энерго\", г. Качканар",0,0,0,0,0,0,0,0,0,0,0,0,0,0,0,0,0,0,0,0,0,0,0,0,0,0,0,0,0,0,0,0,0,0,0,0,0,0,0,0,0,0,0,0,0,0,0,0,0,0,0,0,0,0,0,0,0,0,0,0,0,0,0,0,0,0,0,0,0,0,0,0,0,0,0,0]
[52,"Общество с ограниченной ответственностью \"Электросетевая компания \"Рост\", г. Екатеринбург",0,0,0,0,0,0,0,0,0,0,0,0,0,0,0,0,0,0,0,0,0,0,0,0,0,0,0,0,0,0,0,0,0,0,0,0,0,0,0,0,0,0,0,0,0,0,0,0,0,0,0,0,0,0,0,0,0,0,0,0,0,0,0,0,0,0,0,0,0,0,0,0,0,0,0,0]
[53,"Общество с ограниченной ответственностью \"Электросетевая компания\", п. Шаля",0,0,0,0,0,0,0,0,0,0,0,0,0,0,0,0,0,0,0,0,0,0,0,0,0,0,0,0,0,0,0,0,0,0,0,0,0,0,0,0,0,0,0,0,0,0,0,0,0,0,0,0,0,0,0,0,0,0,0,0,0,0,0,0,0,0,0,0,0,0,0,0,0,0,0,0]
[54,"Общество с ограниченной ответственностью \"Энергоплюс\", г. Екатеринбург",0,0,0,46,0,0,46,0,0,46,0,0,0,0,0,46,0,0,46,0,0,46,0,0,46,0,0,0,0,0,46,0,0,46,0,0,0,0,0,46,0,0,46,0,0,46,0,0,0,0,0,0,0,0,0,0,0,0,0,0,0,0,0,0,0,0,0,0,0,0,0,0,0,0,0,"№ 220-ПК от 21.12.2016 г."]
[55,"Общество с ограниченной ответственностью \"Энергоснабжающая компания\", г. Екатеринбург",0,0,0,0,0,0,0,0,0,0,0,0,0,0,0,0,0,0,0,0,0,0,0,0,0,0,0,0,0,0,0,0,0,0,0,0,0,0,0,0,0,0,0,0,0,0,0,0,0,0,0,0,0,0,0,0,0,0,0,0,0,0,0,0,0,0,0,0,0,0,0,0,0,0,0,0]
[56,"Общество с ограниченной ответственностью \"Энергоуправление\", г. Асбест",0,0,0,61,0,0,61,0,0,15,0,0,0,0,0,61,0,0,61,0,0,15,0,0,15,0,0,0,0,0,0,0,0,0,0,0,0,0,0,0,0,0,0,0,0,0,0,0,0,0,0,0,0,0,0,0,0,0,0,0,0,0,0,0,0,0,0,0,0,0,0,0,0,0,0,"№ 209-ПК от 21.12.2016 г."]
[57,"Общество с ограниченной ответственностью \"Энергошаля\", г. Екатеринбург",762,0,5292,762,0,5292,93,0,5292,93,0,5292,762,0,0,762,0,0,93,0,0,93,0,0,93,0,0,762,0,0,762,0,0,93,0,0,762,0,0,762,0,0,93,0,0,93,0,0,0,0,0,0,0,0,0,0,0,0,0,0,0,0,0,0,0,0,0,0,0,0,0,0,0,0,0,"№ 205-ПК от 21.12.2016 г."]
[58,"Открытое акционерное общество \"Богословское рудоуправление\", г. Краснотурьинск",0,0,0,0,0,0,0,0,0,0,0,0,0,0,0,0,0,0,0,0,0,0,0,0,0,0,0,0,0,0,0,0,0,0,0,0,0,0,0,0,0,0,0,0,0,0,0,0,0,0,0,0,0,0,0,0,0,0,0,0,0,0,0,0,0,0,0,0,0,0,0,0,0,0,0,0]
[59,"Открытое акционерное общество \"Каменск-Уральский металлургический завод\", г. Каменск-Уральский",0,0,0,0,0,0,0,0,0,0,0,0,0,0,0,0,0,0,0,0,0,0,0,0,0,0,0,0,0,0,0,0,0,0,0,0,0,0,0,0,0,0,0,0,0,0,0,0,0,0,0,0,0,0,0,0,0,0,0,0,0,0,0,0,0,0,0,0,0,0,0,0,0,0,0,0]
[60,"Открытое акционерное общество \"Межрегиональная распределительная сетевая компания Урала\", г. Екатеринбург",1543,5450,5902,932,5450,5902,259,5450,5902,259,5450,5902,1803,11799,11586,929,11799,11586,231,11799,11586,231,11799,11586,16,11799,11586,1543,0,0,932,0,0,228,0,0,1803,0,0,929,0,0,211,0,0,15,0,0,0,0,0,0,0,0,0,0,0,0,0,0,7024,0,0,7024,0,0,185,0,0,1381,0,0,60,0,0,"№ 194-ПК от 21.12.2016 г."]
[61,"Открытое акционерное общество \"Объединенная энергетическая компания\" филиал \"Уральский\" г. Санкт-Петербург",0,0,0,640,0,0,640,0,0,640,0,0,0,0,0,0,0,0,0,0,0,0,0,0,0,0,0,0,0,0,0,0,0,0,0,0,0,0,0,0,0,0,0,0,0,0,0,0,0,0,0,0,0,0,0,0,0,0,0,0,0,0,0,0,0,0,0,0,0,0,0,0,0,0,0,"№ 213-ПК от 21.12.2016 г."]
[62,"Открытое акционерное общество \"Первоуральский новотрубный завод\", г. Первоуральск",0,0,0,0,0,0,0,0,0,0,0,0,0,0,0,0,0,0,0,0,0,0,0,0,0,0,0,0,0,0,0,0,0,0,0,0,0,0,0,0,0,0,0,0,0,0,0,0,0,0,0,0,0,0,0,0,0,0,0,0,0,0,0,0,0,0,0,0,0,0,0,0,0,0,0,0]
[63,"Открытое акционерное общество \"Российские железные дороги\" - Свердловская дирекция по энергообеспечению - структурное подразделение Трансэнерго - филиал открытого акционерного общества \"Российские железные дороги\", г. Екатеринбург",0,0,0,135,0,0,135,0,0,135,0,0,0,0,0,14,0,0,14,0,0,14,0,0,14,0,0,0,0,0,0,0,0,0,0,0,0,0,0,0,0,0,0,0,0,0,0,0,0,0,0,0,0,0,0,0,0,0,0,0,0,0,0,0,0,0,0,0,0,0,0,0,0,0,0,"№ 208-ПК от 21.12.2016 г."]
[64,"Открытое акционерное общество \"Российские железные дороги\" Горьковская железная дорога  - филиал открытого акционерного общества \"Российские железные дороги\", г. Нижний Новгород",0,0,0,0,0,0,0,0,0,0,0,0,0,0,0,0,0,0,0,0,0,0,0,0,0,0,0,0,0,0,0,0,0,0,0,0,0,0,0,0,0,0,0,0,0,0,0,0,0,0,0,0,0,0,0,0,0,0,0,0,0,0,0,0,0,0,0,0,0,0,0,0,0,0,0,0]
[65,"Открытое акционерное общество \"Севуралбокситруда\", г. Североуральск",0,0,0,0,0,0,0,0,0,0,0,0,0,0,0,0,0,0,0,0,0,0,0,0,0,0,0,0,0,0,0,0,0,0,0,0,0,0,0,0,0,0,0,0,0,0,0,0,0,0,0,0,0,0,0,0,0,0,0,0,0,0,0,0,0,0,0,0,0,0,0,0,0,0,0,0]
[66,"Открытое акционерное общество \"Среднеуральский медеплавильный завод\", г. Ревда",0,0,0,0,0,0,0,0,0,0,0,0,0,0,0,11,0,0,11,0,0,11,0,0,11,0,0,0,0,0,0,0,0,0,0,0,0,0,0,0,0,0,0,0,0,0,0,0,0,0,0,0,0,0,0,0,0,0,0,0,0,0,0,0,0,0,0,0,0,0,0,0,0,0,0,"№ 221-ПК от 21.12.2016 г."]
[67,"Открытое акционерное общество \"Уралредмет\", г. Верхняя Пышма",0,0,0,0,0,0,0,0,0,0,0,0,0,0,0,0,0,0,0,0,0,0,0,0,0,0,0,0,0,0,0,0,0,0,0,0,0,0,0,0,0,0,0,0,0,0,0,0,0,0,0,0,0,0,0,0,0,0,0,0,0,0,0,0,0,0,0,0,0,0,0,0,0,0,0,0]
[68,"Публичное акционерное общество \"Аэропорт Кольцово\", г. Екатеринбург",0,0,0,0,0,0,0,0,0,0,0,0,0,0,0,0,0,0,0,0,0,0,0,0,0,0,0,0,0,0,0,0,0,0,0,0,0,0,0,0,0,0,0,0,0,0,0,0,0,0,0,0,0,0,0,0,0,0,0,0,0,0,0,0,0,0,0,0,0,0,0,0,0,0,0,0]
[69,"Публичное акционерное общество \"Машиностроительный завод имени М.И.Калинина, г. Екатеринбург\", г. Екатеринбург",0,0,0,0,0,0,0,0,0,0,0,0,0,0,0,0,0,0,0,0,0,0,0,0,0,0,0,0,0,0,0,0,0,0,0,0,0,0,0,0,0,0,0,0,0,0,0,0,0,0,0,0,0,0,0,0,0,0,0,0,0,0,0,0,0,0,0,0,0,0,0,0,0,0,0,0]
[70,"Публичное акционерное общество \"Надеждинский металлургический завод\", г. Серов",0,0,0,0,0,0,0,0,0,0,0,0,0,0,0,0,0,0,0,0,0,0,0,0,0,0,0,0,0,0,0,0,0,0,0,0,0,0,0,0,0,0,0,0,0,0,0,0,0,0,0,0,0,0,0,0,0,0,0,0,0,0,0,0,0,0,0,0,0,0,0,0,0,0,0,0]
[71,"Публичное акционерное общество \"Северский трубный завод\", г. Полевской",0,0,0,0,0,0,0,0,0,0,0,0,0,0,0,12,0,0,12,0,0,12,0,0,12,0,0,0,0,0,0,0,0,0,0,0,0,0,0,0,0,0,0,0,0,0,0,0,0,0,0,0,0,0,0,0,0,0,0,0,0,0,0,0,0,0,0,0,0,0,0,0,0,0,0,"№ 210-ПК от 21.12.2016 г."]
[72,"Публичное акционерное общество \"Синарский трубный завод\", г. Каменск-Уральский",0,0,0,0,0,0,0,0,0,0,0,0,0,0,0,69,0,0,69,0,0,69,0,0,69,0,0,0,0,0,0,0,0,0,0,0,0,0,0,0,0,0,0,0,0,0,0,0,0,0,0,0,0,0,0,0,0,0,0,0,0,0,0,0,0,0,0,0,0,0,0,0,0,0,0,"№ 218-ПК от 21.12.2016 г."]
[73,"ФГАОУ ВО \"Уральский Федеральный Университет имени первого Президента России Б.Н. Ельцина\" структурное подразделение ЭПК УрФУ\" г. Екатеринбург",0,0,0,321,0,11836,321,0,11836,321,0,11836,0,0,0,321,0,11836,321,0,11836,321,0,11836,321,0,11836,0,0,0,0,0,0,0,0,0,0,0,0,0,0,0,0,0,0,0,0,0,0,0,0,0,0,0,0,0,0,0,0,0,0,0,0,0,0,0,0,0,0,0,0,0,0,0,0,"№ 197-ПК от 21.12.2016 г."]
[74,"Федеральное государственное унитарное предприятие \"Научно-исследовательский институт машиностроения\", г. Верхняя Салда",0,0,0,0,0,0,0,0,0,0,0,0,0,0,0,0,0,0,0,0,0,0,0,0,0,0,0,0,0,0,0,0,0,0,0,0,0,0,0,0,0,0,0,0,0,0,0,0,0,0,0,0,0,0,0,0,0,0,0,0,0,0,0,0,0,0,0,0,0,0,0,0,0,0,0,0]
[75,"Федеральное государственное унитарное предприятие \"Уральский электромеханический завод\", г. Екатеринбург",0,0,0,0,0,0,0,0,0,0,0,0,0,0,0,0,0,0,0,0,0,0,0,0,0,0,0,0,0,0,0,0,0,0,0,0,0,0,0,0,0,0,0,0,0,0,0,0,0,0,0,0,0,0,0,0,0,0,0,0,0,0,0,0,0,0,0,0,0,0,0,0,0,0,0,0]
[76,"Филиал \"Патра\" общества с ограниченной ответственностью \"Объединенные Пивоварни Хейнекен\", г. Екатеринбург",0,0,0,0,0,0,0,0,0,0,0,0,0,0,0,0,0,0,0,0,0,0,0,0,0,0,0,0,0,0,0,0,0,0,0,0,0,0,0,0,0,0,0,0,0,0,0,0,0,0,0,0,0,0,0,0,0,0,0,0,0,0,0,0,0,0,0,0,0,0,0,0,0,0,0,0]
[]
[]
[]
[null,null,"0,4 кВ",null,null,null,null,null,null,null,null,null,null,null,"6-10 кВ",null,null,null,null,null,null,null,null,null,null,null,null,null,null,"0,4 временная схема",null,null,null,null,null,null,null,null,"6-10 кВ временная схема",null,null,null,null,null,null,null,null,null,null,null,"20 кВ",null,null,null,null,null,"20 кВ временая схема",null,null,null,null,null,"35 кВ ",null,null,null,null,null,null,null,null,"110 кВ "]
[null,null,"до 15 кВт ",null,null,"от 15 кВт до 150 кВт",null,null,"от 150 кВт до 670 кВт",null,null,"от 670 кВт ",null,null,"до 15 кВт ",null,null,"от 15 кВт до 150 кВт",null,null,"от 150 кВт до 670 кВт",null,null,"от 670 кВт до 8900 кВт",null,null,"от 8 900 кВт",null,null,"до 15 кВт",null,null,"от 15 кВт до 150 кВт",null,null,"от 150 кВт ",null,null,"до 15 кВт",null,null,"от 15 кВт до 150 кВт",null,null,"от 150 кВт до 8900 кВт",null,null,"от 8900 кВт",null,null," до 15 кВт",null,null,"от 15 кВт ",null,null," до 15 кВт",null,null,"от 15 кВт ",null,null,"до 15 кВт",null,null,"от 15 кВт до 150 кВт",null,null,"от 150 кВт ",null,null," до 150 кВт",null,null,"от 150 кВт "]
[null,null,"С11","СВЛ1","СКЛ1","С12","СВЛ2","СКЛ2","С13","СВЛ3","СКЛ3","С14","СВЛ4","СКЛ4","С15","СВЛ5","СКЛ5","С16","СВЛ6","СКЛ6","С17","СВЛ7","СКЛ7","С18","СВЛ8","СКЛ8","С19","СВЛ9","СКЛ9","С110","СВЛ10","СКЛ10","С111","СВЛ11","СКЛ11","С112","СВЛ12","СКЛ12","С113","СВЛ13","СКЛ13","С114","СВЛ14","СКЛ14","С115","СВЛ15","СКЛ15","С116","СВЛ16","СКЛ16","С117","СВЛ17","СКЛ17","С118","СВЛ18","СКЛ18","С119","СВЛ19","СКЛ19","С120","СВЛ20","СКЛ20","С121","СВЛ21","СКЛ21","С122","СВЛ22","СКЛ22","С123","СВЛ23","СКЛ23","С124","СВЛ24","СКЛ24","С125","СВЛ25","СКЛ25"]
[]
[null,1,2,3,4,5,6,7,8,9,10,11,12,13,14,15,16,17,18,19,20,21,22,23,24,25,26,27,28,29,30,31,32,33,34,35,36,37,38,39,40,41,42,43,44,45,46,47,48,49,50,51,52,53,54,55,56,57,58,59,60,61,62,63,64,65,66,67,68,69,70,71,72,73,74,75,76]